Body Name,ONS SNAC ID,Pay Date,Transaction No,Amount �,Supplier Name,Company Registration No,Department,Account Name,Sercop Service Sub Division Tree
Swale Borough Council,29UM,02/08/2017,1152797,8488.76,ACORN MAINTENANCE SERVICES,3546898                  ,HOUSING SERVICES,Housing Renovation Grants,Not used in this Structure
Swale Borough Council,29UM,02/08/2017,1152484,113.12,ALLSTAR BUSINESS SOLUTIONS LTD - (DT),1073098                  ,DEMOCRATIC & ELECTORAL SERVICES,Petrol/Derv & Oil,Corporate & Democratic Core
Swale Borough Council,29UM,02/08/2017,1152484,134.06,ALLSTAR BUSINESS SOLUTIONS LTD - (DT),1073098                  ,ENVIRONMENTAL RESPONSE TEAM,Fuel For Contract Vehicles,Internal Trading Cost Centres
Swale Borough Council,29UM,02/08/2017,1152484,24.52,ALLSTAR BUSINESS SOLUTIONS LTD - (DT),1073098                  ,ENVIRONMENTAL RESPONSE TEAM,Fuel For Contract Vehicles,Environmental and Regulatory Services
Swale Borough Council,29UM,02/08/2017,1152659,37.17,ALLSTAR BUSINESS SOLUTIONS LTD - (DT),1073098                  ,SERVICE DELIVERY,Petrol/Derv & Oil,Cultural and Related Services
Swale Borough Council,29UM,02/08/2017,1152659,208.21,ALLSTAR BUSINESS SOLUTIONS LTD - (DT),1073098                  ,ENVIRONMENTAL RESPONSE TEAM,Fuel For Contract Vehicles,Internal Trading Cost Centres
Swale Borough Council,29UM,02/08/2017,1152659,48.45,ALLSTAR BUSINESS SOLUTIONS LTD - (DT),1073098                  ,ENVIRONMENTAL RESPONSE TEAM,Fuel For Contract Vehicles,Environmental and Regulatory Services
Swale Borough Council,29UM,02/08/2017,1152693,350.00,AMETHYST HORTICULTURE LTD,4464660                  ,LEISURE & OPEN SPACES,Nursery Stock,Environmental and Regulatory Services
Swale Borough Council,29UM,02/08/2017,1152693,10913.38,AMETHYST HORTICULTURE LTD,4464660                  ,LEISURE & OPEN SPACES,Nursery Stock,Cultural and Related Services
Swale Borough Council,29UM,02/08/2017,1152693,9980.00,AMETHYST HORTICULTURE LTD,4464660                  ,LEISURE & OPEN SPACES,Nursery Stock,Environmental and Regulatory Services
Swale Borough Council,29UM,02/08/2017,1152792,6264.42,AQUATHERM INSTALLATIONS LTD,09476072                 ,HOUSING SERVICES,Housing Renovation Grants,Not used in this Structure
Swale Borough Council,29UM,02/08/2017,1152059,3200.69,BLENWOOD LTD,4383277                  ,LEISURE & OPEN SPACES,Grounds Maint Suspense,Cultural and Related Services
Swale Borough Council,29UM,02/08/2017,1152681,724.90,BLENWOOD LTD,4383277                  ,LEISURE & OPEN SPACES,Grounds Contract Variations,Cultural and Related Services
Swale Borough Council,29UM,02/08/2017,1152707,860.31,BLENWOOD LTD,4383277                  ,LEISURE & OPEN SPACES,Maintenance - Grounds,Environmental and Regulatory Services
Swale Borough Council,29UM,02/08/2017,1152534,17141.00,BLOOM PROCUREMENT SERVICES LTD,08045123                 ,ECONOMIC DEVELOPMENT,Regeneration Fund Expenditure,Ledger/Suspense Codes
Swale Borough Council,29UM,02/08/2017,1152519,3333.33,CHALKWELL COACH HIRE LTD,2520842                  ,PLANNING SERVICES,Payments in Year,Ledger/Suspense Codes
Swale Borough Council,29UM,02/08/2017,1152522,3333.33,CHALKWELL COACH HIRE LTD,2520842                  ,PLANNING SERVICES,Payments in Year,Ledger/Suspense Codes
Swale Borough Council,29UM,02/08/2017,1152794,6692.75,COLDWELL CONSTRUCTION LTD,4814340                  ,HOUSING SERVICES,Housing Renovation Grants,Not used in this Structure
Swale Borough Council,29UM,02/08/2017,1152505,590.00,COLOUR FACTORY,5312299                  ,ENVIRONMENTAL RESPONSE TEAM,Printing - External Funded by Grant & Other Income,Planning and Development Services
Swale Borough Council,29UM,02/08/2017,1152796,629.54,DAYTRAD LIMITED,7654373                  ,HOUSING SERVICES,Housing Renovation Grants,Not used in this Structure
Swale Borough Council,29UM,02/08/2017,1152795,2300.00,DOLPHIN STAIRLIFTS (KENT),04181846                 ,HOUSING SERVICES,Housing Renovation Grants,Not used in this Structure
Swale Borough Council,29UM,02/08/2017,1151173,500.00,FMC (FABRICS & MAINT CONT) LTD,07509198                 ,COMMUNITY SAFETY,Capital Constuction - CIS Works,Not used in this Structure
Swale Borough Council,29UM,02/08/2017,1151173,1186.75,FMC (FABRICS & MAINT CONT) LTD,07509198                 ,COMMUNITY SAFETY,Capital Constuction - CIS Works,Not used in this Structure
Swale Borough Council,29UM,02/08/2017,1151173,-50.60,FMC (FABRICS & MAINT CONT) LTD,07509198                 ,COMMUNITY SAFETY,Capital Constuction - CIS Works,Not used in this Structure
Swale Borough Council,29UM,02/08/2017,1151174,1000.00,FMC (FABRICS & MAINT CONT) LTD,07509198                 ,COMMUNITY SAFETY,Capital Constuction - CIS Works,Not used in this Structure
Swale Borough Council,29UM,02/08/2017,1151174,2664.16,FMC (FABRICS & MAINT CONT) LTD,07509198                 ,COMMUNITY SAFETY,Capital Constuction - CIS Works,Not used in this Structure
Swale Borough Council,29UM,02/08/2017,1151174,-109.92,FMC (FABRICS & MAINT CONT) LTD,07509198                 ,COMMUNITY SAFETY,Capital Constuction - CIS Works,Not used in this Structure
Swale Borough Council,29UM,02/08/2017,1152638,150.00,FMC (FABRICS & MAINT CONT) LTD,07509198                 ,COMMUNITY SAFETY,Capital Constuction - CIS Works,Not used in this Structure
Swale Borough Council,29UM,02/08/2017,1152638,450.00,FMC (FABRICS & MAINT CONT) LTD,07509198                 ,COMMUNITY SAFETY,Capital Constuction - CIS Works,Not used in this Structure
Swale Borough Council,29UM,02/08/2017,1152638,-18.00,FMC (FABRICS & MAINT CONT) LTD,07509198                 ,COMMUNITY SAFETY,Capital Constuction - CIS Works,Not used in this Structure
Swale Borough Council,29UM,02/08/2017,1152639,400.00,FMC (FABRICS & MAINT CONT) LTD,07509198                 ,COMMUNITY SAFETY,Capital Constuction - CIS Works,Not used in this Structure
Swale Borough Council,29UM,02/08/2017,1152639,1000.00,FMC (FABRICS & MAINT CONT) LTD,07509198                 ,COMMUNITY SAFETY,Capital Constuction - CIS Works,Not used in this Structure
Swale Borough Council,29UM,02/08/2017,1152639,-42.00,FMC (FABRICS & MAINT CONT) LTD,07509198                 ,COMMUNITY SAFETY,Capital Constuction - CIS Works,Not used in this Structure
Swale Borough Council,29UM,02/08/2017,1151402,347.00,HEIGHTSAFE SYSTEMS LTD,07064393                 ,COMMUNITY SAFETY,Capital Constuction - CIS Works,Not used in this Structure
Swale Borough Council,29UM,02/08/2017,1152599,749.30,HI WAY SERVICES LTD,2850815                  ,CAR PARKS,Road Signs,Highway and Transport Services
Swale Borough Council,29UM,02/08/2017,1152600,1323.56,HI WAY SERVICES LTD,2850815                  ,CAR PARKS,Road Signs,Highway and Transport Services
Swale Borough Council,29UM,02/08/2017,1152602,1502.22,HI WAY SERVICES LTD,2850815                  ,CAR PARKS,Road Lining,Highway and Transport Services
Swale Borough Council,29UM,02/08/2017,1152596,256.40,HOUND ENVELOPES LTD,4802560                  ,DEMOCRATIC & ELECTORAL SERVICES,Stationery,Central Services to the Public
Swale Borough Council,29UM,02/08/2017,1152612,377.54,HOUND ENVELOPES LTD,4802560                  ,DEMOCRATIC & ELECTORAL SERVICES,Stationery,Central Services to the Public
Swale Borough Council,29UM,02/08/2017,1152790,618.82,J & D SYSTEMS,                         ,HOUSING SERVICES,Housing Renovation Grants,Not used in this Structure
Swale Borough Council,29UM,02/08/2017,1152092,3550.00,J N CLEARANCE,                         ,CONTRACT & PROCUREMENT,"Clearance Of Waste,Fly Tipping",Environmental and Regulatory Services
Swale Borough Council,29UM,02/08/2017,1152667,8518.33,KENT COUNTY COUNCIL,                         ,COMMISSIONING & CUSTOMER CONTACT,Contracts,Internal Trading Cost Centres
Swale Borough Council,29UM,02/08/2017,1152682,1169.12,KENT COUNTY COUNCIL,                         ,SERVICE DELIVERY,Fees And Services,Highway and Transport Services
Swale Borough Council,29UM,02/08/2017,1152822,324815.00,KENT COUNTY COUNCIL,                         ,FINANCIAL SERVICES,STC - Capitalised Fees And Charges,Not used in this Structure
Swale Borough Council,29UM,02/08/2017,1152822,64963.00,KENT COUNTY COUNCIL,                         ,FINANCIAL SERVICES,STC - Capitalised Fees And Charges,Not used in this Structure
Swale Borough Council,29UM,02/08/2017,1152823,643420.23,KENT COUNTY COUNCIL,                         ,FINANCIAL SERVICES,STC - Capitalised Fees And Charges,Not used in this Structure
Swale Borough Council,29UM,02/08/2017,1152823,128684.05,KENT COUNTY COUNCIL,                         ,FINANCIAL SERVICES,STC - Capitalised Fees And Charges,Not used in this Structure
Swale Borough Council,29UM,02/08/2017,1152824,126407.70,KENT COUNTY COUNCIL,                         ,FINANCIAL SERVICES,STC - Capitalised Fees And Charges,Not used in this Structure
Swale Borough Council,29UM,02/08/2017,1152824,25281.54,KENT COUNTY COUNCIL,                         ,FINANCIAL SERVICES,STC - Capitalised Fees And Charges,Not used in this Structure
Swale Borough Council,29UM,02/08/2017,1152825,42719.10,KENT COUNTY COUNCIL,                         ,FINANCIAL SERVICES,STC - Capitalised Fees And Charges,Not used in this Structure
Swale Borough Council,29UM,02/08/2017,1152825,8543.82,KENT COUNTY COUNCIL,                         ,FINANCIAL SERVICES,STC - Capitalised Fees And Charges,Not used in this Structure
Swale Borough Council,29UM,02/08/2017,1152540,300.00,LEMAR LIMITED,04350292                 ,CAR PARKS,Maintenance - Grounds,Highway and Transport Services
Swale Borough Council,29UM,02/08/2017,1152540,200.00,LEMAR LIMITED,04350292                 ,CAR PARKS,Maintenance - Grounds,Highway and Transport Services
Swale Borough Council,29UM,02/08/2017,1152545,300.00,LEMAR LIMITED,04350292                 ,SERVICE DELIVERY,Private Contractors - CIS,Highway and Transport Services
Swale Borough Council,29UM,02/08/2017,1152545,335.00,LEMAR LIMITED,04350292                 ,SERVICE DELIVERY,Private Contractors - CIS,Highway and Transport Services
Swale Borough Council,29UM,02/08/2017,1152548,300.00,LEMAR LIMITED,04350292                 ,SERVICE DELIVERY,Capital Constuction - CIS Works,Not used in this Structure
Swale Borough Council,29UM,02/08/2017,1152548,183.40,LEMAR LIMITED,04350292                 ,SERVICE DELIVERY,Capital Constuction - CIS Works,Not used in this Structure
Swale Borough Council,29UM,02/08/2017,1152363,1505.85,LLOYDS BANK - (DT),                         ,FINANCIAL SERVICES,Bank Charges,Corporate & Democratic Core
Swale Borough Council,29UM,02/08/2017,1152705,1260.00,LUSHLAND,4289261                  ,PLANNING SERVICES,Fees And Services,Planning and Development Services
Swale Borough Council,29UM,02/08/2017,1152463,1505.00,MAGEES GUESTHOUSE,                         ,HOUSING SERVICES,B & B - Landlords Payments,Housing
Swale Borough Council,29UM,02/08/2017,1152660,1750.00,MAGEES GUESTHOUSE,                         ,HOUSING SERVICES,B & B - Landlords Payments,Housing
Swale Borough Council,29UM,02/08/2017,1152570,16069.00,MAIDSTONE BOROUGH COUNCIL,                         ,REVENUE SERVICES,MKS Fraud Partnership Charges,Housing
Swale Borough Council,29UM,02/08/2017,1152571,290.00,MAIDSTONE BOROUGH COUNCIL,                         ,CAR PARKS,Maintenance - Grounds,Highway and Transport Services
Swale Borough Council,29UM,02/08/2017,1152572,73585.00,MAIDSTONE BOROUGH COUNCIL,                         ,PLANNING SERVICES,MKS Charges for Land Charges,Central Services to the Public
Swale Borough Council,29UM,02/08/2017,1152199,2085.60,MEDWAY ACCOMMODATION LIMITED,                         ,HOUSING SERVICES,B & B - Landlords Payments,Housing
Swale Borough Council,29UM,02/08/2017,1152199,434.50,MEDWAY ACCOMMODATION LIMITED,                         ,HOUSING SERVICES,B & B - Landlords Payments,Housing
Swale Borough Council,29UM,02/08/2017,1152200,390.67,MEDWAY ACCOMMODATION LIMITED,                         ,HOUSING SERVICES,B & B - Landlords Payments,Housing
Swale Borough Council,29UM,02/08/2017,1152200,1875.20,MEDWAY ACCOMMODATION LIMITED,                         ,HOUSING SERVICES,B & B - Landlords Payments,Housing
Swale Borough Council,29UM,02/08/2017,1152348,2635.20,MEDWAY ACCOMMODATION LIMITED,                         ,HOUSING SERVICES,B & B - Landlords Payments,Housing
Swale Borough Council,29UM,02/08/2017,1152348,549.00,MEDWAY ACCOMMODATION LIMITED,                         ,HOUSING SERVICES,B & B - Landlords Payments,Housing
Swale Borough Council,29UM,02/08/2017,1152531,2473.60,MEDWAY ACCOMMODATION LIMITED,                         ,HOUSING SERVICES,B & B - Landlords Payments,Housing
Swale Borough Council,29UM,02/08/2017,1152531,515.33,MEDWAY ACCOMMODATION LIMITED,                         ,HOUSING SERVICES,B & B - Landlords Payments,Housing
Swale Borough Council,29UM,02/08/2017,1152497,298.00,METRIC GROUP LTD,2560839                  ,CAR PARKS,Equipment Maintenance,Highway and Transport Services
Swale Borough Council,29UM,02/08/2017,1152053,31716.00,PARAMOUNT INDEPENDENT PROPERTY SERVICES,                         ,HOUSING SERVICES,B & B - Landlords Payments,Housing
Swale Borough Council,29UM,02/08/2017,1152609,1105.00,PATROL,                         ,CAR PARKS,Parking Adjudication Fees,Highway and Transport Services
Swale Borough Council,29UM,02/08/2017,1152609,1105.00,PATROL,                         ,CAR PARKS,Parking Adjudication Fees,Highway and Transport Services
Swale Borough Council,29UM,02/08/2017,1152615,300.00,PHOENIX SOFTWARE LTD,                         ,PLANNING SERVICES,Equipment Maintenance,Planning and Development Services
Swale Borough Council,29UM,02/08/2017,1152683,300.00,PHOENIX SOFTWARE LTD,                         ,CHIEF EXECUTIVE,Equipment Purchase,Internal Trading Cost Centres
Swale Borough Council,29UM,02/08/2017,1152584,735.00,REARDON PROPERTIES,                         ,HOUSING SERVICES,B & B - Landlords Payments,Housing
Swale Borough Council,29UM,02/08/2017,1152585,490.00,REARDON PROPERTIES,                         ,HOUSING SERVICES,B & B - Landlords Payments,Housing
Swale Borough Council,29UM,02/08/2017,1152643,695.00,REARDON PROPERTIES,                         ,HOUSING SERVICES,B & B - Landlords Payments,Housing
Swale Borough Council,29UM,02/08/2017,1152644,875.00,REARDON PROPERTIES,                         ,HOUSING SERVICES,B & B - Landlords Payments,Housing
Swale Borough Council,29UM,02/08/2017,1152645,875.00,REARDON PROPERTIES,                         ,HOUSING SERVICES,B & B - Landlords Payments,Housing
Swale Borough Council,29UM,02/08/2017,1152700,280.00,REARDON PROPERTIES,                         ,HOUSING SERVICES,B & B - Landlords Payments,Housing
Swale Borough Council,29UM,02/08/2017,1152701,875.00,REARDON PROPERTIES,                         ,HOUSING SERVICES,B & B - Landlords Payments,Housing
Swale Borough Council,29UM,02/08/2017,1152702,385.00,REARDON PROPERTIES,                         ,HOUSING SERVICES,B & B - Landlords Payments,Housing
Swale Borough Council,29UM,02/08/2017,1152703,735.00,REARDON PROPERTIES,                         ,HOUSING SERVICES,B & B - Landlords Payments,Housing
Swale Borough Council,29UM,02/08/2017,1152549,1058.67,ROYAL MAIL GROUP LTD,4138203                  ,REVENUE SERVICES,Postage,Central Services to the Public
Swale Borough Council,29UM,02/08/2017,1152095,10994.80,SERCO LEISURE OPERATING LIMITED,04687478                 ,LEISURE & OPEN SPACES,Procurement Contracts Only,Cultural and Related Services
Swale Borough Council,29UM,02/08/2017,1152614,748.76,SHEPPEY MATTERS,3946296                  ,TOURISM & SPORTS DEVELOPMENT,Grants & Subscriptions,Cultural and Related Services
Swale Borough Council,29UM,02/08/2017,1152749,260.75,SHEPPEY MATTERS,3946296                  ,ECONOMIC DEVELOPMENT,Fees And Services,Planning and Development Services
Swale Borough Council,29UM,02/08/2017,1152793,6072.00,SOUTH EAST BUILDING CO LTD,1786838                  ,HOUSING SERVICES,Housing Renovation Grants,Not used in this Structure
Swale Borough Council,29UM,02/08/2017,1152791,358.76,STANNAH LIFT SERVICES,                         ,HOUSING SERVICES,Housing Renovation Grants,Not used in this Structure
Swale Borough Council,29UM,02/08/2017,1152557,761.00,STORAGE KING,                         ,HOUSING SERVICES,Homelessness  Prevention Services,Housing
Swale Borough Council,29UM,02/08/2017,1152113,5800.00,SWALE COMMUNITY LEISURE LIMITED,31132R                   ,LEISURE & OPEN SPACES,Procurement Contracts Only,Cultural and Related Services
Swale Borough Council,29UM,02/08/2017,1152114,12038.82,SWALE COMMUNITY LEISURE LIMITED,31132R                   ,LEISURE & OPEN SPACES,Procurement Contracts Only,Cultural and Related Services
Swale Borough Council,29UM,02/08/2017,1152115,8500.00,SWALE COMMUNITY LEISURE LIMITED,31132R                   ,LEISURE & OPEN SPACES,Procurement Contracts Only,Cultural and Related Services
Swale Borough Council,29UM,02/08/2017,1152553,1715.00,TRAFALGAR TAVERN LTD,07999329                 ,HOUSING SERVICES,B & B - Landlords Payments,Housing
Swale Borough Council,29UM,02/08/2017,1152728,1505.00,TRAFALGAR TAVERN LTD,07999329                 ,HOUSING SERVICES,B & B - Landlords Payments,Housing
Swale Borough Council,29UM,02/08/2017,1152661,858.00,VENN GROUP LIMITED,                         ,MKS LEGAL SERVICES,Agency/Contract Staff,Internal Trading Cost Centres
Swale Borough Council,29UM,02/08/2017,1152662,560.00,VENN GROUP LIMITED,                         ,MKS LEGAL SERVICES,Agency/Contract Staff,Internal Trading Cost Centres
Swale Borough Council,29UM,02/08/2017,1152663,967.50,VENN GROUP LIMITED,                         ,MKS LEGAL SERVICES,Agency/Contract Staff,Internal Trading Cost Centres
Swale Borough Council,29UM,02/08/2017,1152735,600.00,WEDDLE & CO LTD,4543074                  ,LEISURE & OPEN SPACES,Maintenance - Grounds,Cultural and Related Services
Swale Borough Council,29UM,02/08/2017,1152508,1471.93,WHISTL UK LIMITED,04417047                 ,REVENUE SERVICES,Postage,Central Services to the Public
Swale Borough Council,29UM,02/08/2017,1152508,1.95,WHISTL UK LIMITED,04417047                 ,PLANNING SERVICES,Postage,Planning and Development Services
Swale Borough Council,29UM,02/08/2017,1152508,735.96,WHISTL UK LIMITED,04417047                 ,REVENUE SERVICES,Postage,Housing
Swale Borough Council,29UM,02/08/2017,1152508,0.54,WHISTL UK LIMITED,04417047                 ,LEISURE & OPEN SPACES,Postage,Internal Trading Cost Centres
Swale Borough Council,29UM,02/08/2017,1152508,33.07,WHISTL UK LIMITED,04417047                 ,CAR PARKS,Postage,Internal Trading Cost Centres
Swale Borough Council,29UM,02/08/2017,1152508,110.73,WHISTL UK LIMITED,04417047                 ,PROPERTY SERVICES,Postage,Holding Codes
Swale Borough Council,29UM,02/08/2017,1152508,37.58,WHISTL UK LIMITED,04417047                 ,DEMOCRATIC & ELECTORAL SERVICES,Postage,Central Services to the Public
Swale Borough Council,29UM,09/08/2017,1152377,1180.00,AECOM INFRASTRUCTURE & ENV UK LTD,880328                   ,PLANNING SERVICES,Fees And Services,Planning and Development Services
Swale Borough Council,29UM,09/08/2017,1152858,43.70,ALLPAY LTD,02933191                 ,REVENUE SERVICES,Bank Charges Pay Point,Central Services to the Public
Swale Borough Council,29UM,09/08/2017,1152858,2921.27,ALLPAY LTD,02933191                 ,REVENUE SERVICES,Bank Charges Pay Point,Central Services to the Public
Swale Borough Council,29UM,09/08/2017,1152858,2.30,ALLPAY LTD,02933191                 ,REVENUE SERVICES,Bank Charges Pay Point,Housing
Swale Borough Council,29UM,09/08/2017,1152858,46.54,ALLPAY LTD,02933191                 ,REVENUE SERVICES,Bank Charges Pay Point,Housing
Swale Borough Council,29UM,09/08/2017,1152858,45.24,ALLPAY LTD,02933191                 ,EXCHEQUER,Bank Charges Pay Point,Internal Trading Cost Centres
Swale Borough Council,29UM,09/08/2017,1152697,13253.77,APCOA PARKING (UK) LTD,2572947                  ,CAR PARKS,Private Contractors,Highway and Transport Services
Swale Borough Council,29UM,09/08/2017,1152697,19880.67,APCOA PARKING (UK) LTD,2572947                  ,CAR PARKS,Private Contractors,Highway and Transport Services
Swale Borough Council,29UM,09/08/2017,1152698,372.08,APCOA PARKING (UK) LTD,2572947                  ,CAR PARKS,Private Contractors,Highway and Transport Services
Swale Borough Council,29UM,09/08/2017,1152698,558.12,APCOA PARKING (UK) LTD,2572947                  ,CAR PARKS,Private Contractors,Highway and Transport Services
Swale Borough Council,29UM,09/08/2017,1152933,10860.00,ASCENDIT LIFTS LTD,3493530                  ,HOUSING SERVICES,Housing Renovation Grants,Not used in this Structure
Swale Borough Council,29UM,09/08/2017,1152342,998.65,B W MAY AND SON LTD,1016572                  ,PLANNING SERVICES,Private Contractors - CIS,Planning and Development Services
Swale Borough Council,29UM,09/08/2017,1152690,99465.28,BLENWOOD LTD,4383277                  ,LEISURE & OPEN SPACES,Grounds Maint Suspense,Cultural and Related Services
Swale Borough Council,29UM,09/08/2017,1152691,3200.69,BLENWOOD LTD,4383277                  ,LEISURE & OPEN SPACES,Grounds Maint Suspense,Cultural and Related Services
Swale Borough Council,29UM,09/08/2017,1152919,1197.71,BT REDCARE,1800000                  ,COMMUNITY SAFETY,CCTV Line Rental,Environmental and Regulatory Services
Swale Borough Council,29UM,09/08/2017,1152668,510.00,CANNON FIRE PROTECTION LTD,09304781                 ,PROPERTY SERVICES,Service Contracts,Corporate & Democratic Core
Swale Borough Council,29UM,09/08/2017,1152711,1033.95,CHEGWORTH GRAPHIC,7683594                  ,COMMUNITY SAFETY,Signage - External Funded by Grant & Other Income,Environmental and Regulatory Services
Swale Borough Council,29UM,09/08/2017,1152713,396.10,CHEGWORTH GRAPHIC,7683594                  ,LEISURE & OPEN SPACES,Signage - External Funded by Grant & Other Income,Cultural and Related Services
Swale Borough Council,29UM,09/08/2017,1152715,759.31,CHEGWORTH GRAPHIC,7683594                  ,SERVICE DELIVERY,Signage - External Funded by Grant & Other Income,Environmental and Regulatory Services
Swale Borough Council,29UM,09/08/2017,1152673,2228.33,CHILDREN AND FAMILIES LTD,                         ,COMMUNITY SAFETY,Fees And Services,Planning and Development Services
Swale Borough Council,29UM,09/08/2017,1152770,666.66,CLARKES SPORTS STUDIO,                         ,LEISURE & OPEN SPACES,Grants & Subscriptions,Cultural and Related Services
Swale Borough Council,29UM,09/08/2017,1152922,3000.00,COHESION PLUS KENT,6924474                  ,COMMUNITY SAFETY,Fees And Services,Environmental and Regulatory Services
Swale Borough Council,29UM,09/08/2017,1152637,3967.82,COMENSURA LTD,04085767                 ,HUMAN RESOURCES,Agency/Contract Staff,Internal Trading Cost Centres
Swale Borough Council,29UM,09/08/2017,1152789,7183.00,COMENSURA LTD,04085767                 ,HUMAN RESOURCES,Agency/Contract Staff,Internal Trading Cost Centres
Swale Borough Council,29UM,09/08/2017,1152746,4564.00,DAISY CORPORATE SERVICES LIMITED,4166889                  ,MKS ICT,Telephone,Corporate & Democratic Core
Swale Borough Council,29UM,09/08/2017,1152769,5949.10,DAVID HUSKISSON ASSOCIATES LIMITED,2797095                  ,PLANNING SERVICES,Fees And Services,Planning and Development Services
Swale Borough Council,29UM,09/08/2017,1152850,924.00,DISCLOSURE & BARRING SERVICE (DT),                         ,LICENCING,Fees And Services,Environmental and Regulatory Services
Swale Borough Council,29UM,09/08/2017,1152780,270.00,ERYL DAVIES VETERINARY SURGEON,                         ,ENVIRONMENTAL RESPONSE TEAM,Fees - Veterinary,Environmental and Regulatory Services
Swale Borough Council,29UM,09/08/2017,1152869,950.00,HARRISONS CHARTERED SURVEYORS,                         ,PROPERTY SERVICES,Consultancy/Specialist Advice,Internal Trading Cost Centres
Swale Borough Council,29UM,09/08/2017,1152935,4682.25,HIGHER ELEVATION LTD,                         ,HOUSING SERVICES,Housing Renovation Grants,Not used in this Structure
Swale Borough Council,29UM,09/08/2017,1152772,1000.00,HISTORICAL RESEARCH GRP OF S'BOURNE,                         ,TOURISM & SPORTS DEVELOPMENT,Grants & Subscriptions,Cultural and Related Services
Swale Borough Council,29UM,09/08/2017,1152768,500.00,HUBBARD & HOUGHTON CONSTRUCTION LTD,                         ,HOUSING SERVICES,Staying Put small repairs (contractors),Housing
Swale Borough Council,29UM,09/08/2017,1152932,2001.92,HUBBARD & HOUGHTON CONSTRUCTION LTD,                         ,HOUSING SERVICES,Housing Renovation Grants,Not used in this Structure
Swale Borough Council,29UM,09/08/2017,1152934,1827.90,HUBBARD & HOUGHTON CONSTRUCTION LTD,                         ,HOUSING SERVICES,Housing Renovation Grants,Not used in this Structure
Swale Borough Council,29UM,09/08/2017,1152837,250.00,REDACTED PERSONAL INFORMATION,                         ,TOURISM & SPORTS DEVELOPMENT,Grants & Subscriptions,Cultural and Related Services
Swale Borough Council,29UM,09/08/2017,1152678,2850.00,i-NET TECHNICAL SERVICES LTD,                         ,MKS ICT,Computer Equipment & Materials,Internal Trading Cost Centres
Swale Borough Council,29UM,09/08/2017,1152838,250.00,REDACTED PERSONAL INFORMATION,                         ,TOURISM & SPORTS DEVELOPMENT,Grants & Subscriptions,Cultural and Related Services
Swale Borough Council,29UM,09/08/2017,1152834,250.00,REDACTED PERSONAL INFORMATION,                         ,TOURISM & SPORTS DEVELOPMENT,Grants & Subscriptions,Cultural and Related Services
Swale Borough Council,29UM,09/08/2017,1152782,1650.00,LIBERTY PRINTERS LTD,2920033                  ,CAR PARKS,External Permit Printing,Highway and Transport Services
Swale Borough Council,29UM,09/08/2017,1152783,280.00,LILAC ESTATES,                         ,HOUSING SERVICES,B & B - Landlords Payments,Housing
Swale Borough Council,29UM,09/08/2017,1152784,280.00,LILAC ESTATES,                         ,HOUSING SERVICES,B & B - Landlords Payments,Housing
Swale Borough Council,29UM,09/08/2017,1152785,280.00,LILAC ESTATES,                         ,HOUSING SERVICES,B & B - Landlords Payments,Housing
Swale Borough Council,29UM,09/08/2017,1152786,280.00,LILAC ESTATES,                         ,HOUSING SERVICES,B & B - Landlords Payments,Housing
Swale Borough Council,29UM,09/08/2017,1152787,280.00,LILAC ESTATES,                         ,HOUSING SERVICES,B & B - Landlords Payments,Housing
Swale Borough Council,29UM,09/08/2017,1152923,345.49,LYNSTED WITH KINGSDOWN SOCIETY,                         ,TOURISM & SPORTS DEVELOPMENT,Grants & Subscriptions,Cultural and Related Services
Swale Borough Council,29UM,09/08/2017,1152874,4551.00,MAYLOW CONSTRUCTION LTD,                         ,LEISURE & OPEN SPACES,Maintenance - Grounds,Cultural and Related Services
Swale Borough Council,29UM,09/08/2017,1152861,5950.00,MELENGA BUSINESS SOLUTIONS LTD,06148446                 ,FINANCIAL SERVICES,Agency/Contract Staff,Internal Trading Cost Centres
Swale Borough Council,29UM,09/08/2017,1152739,655.00,METRIC GROUP LTD,2560839                  ,CAR PARKS,Fees - Licence,Highway and Transport Services
Swale Borough Council,29UM,09/08/2017,1152830,2109.30,METRIC GROUP LTD,2560839                  ,CAR PARKS,Equipment Maintenance,Highway and Transport Services
Swale Borough Council,29UM,09/08/2017,1152750,4673.33,MODERN MINDSET LTD,                         ,FINANCIAL SERVICES,Performance Fund Expenditure,Ledger/Suspense Codes
Swale Borough Council,29UM,09/08/2017,1152875,1440.00,REDACTED PERSONAL INFORMATION,                         ,SERVICE DELIVERY,Construction,Not used in this Structure
Swale Borough Council,29UM,09/08/2017,1152915,250.00,REDACTED PERSONAL INFORMATION,                         ,ENVIRONMENTAL RESPONSE TEAM,Legal Fees,Internal Trading Cost Centres
Swale Borough Council,29UM,09/08/2017,1152836,250.00,REDACTED PERSONAL INFORMATION,                         ,TOURISM & SPORTS DEVELOPMENT,Grants & Subscriptions,Cultural and Related Services
Swale Borough Council,29UM,09/08/2017,1152883,682.00,NLA MEDIA ACCESS,3003569                  ,COMMUNICATIONS,Fees - Licence,Internal Trading Cost Centres
Swale Borough Council,29UM,09/08/2017,1152706,500.00,NORFOLK COUNTY COUNCIL,                         ,PLANNING SERVICES,Fees And Services,Planning and Development Services
Swale Borough Council,29UM,09/08/2017,1152706,118.00,NORFOLK COUNTY COUNCIL,                         ,PLANNING SERVICES,Fees And Services,Planning and Development Services
Swale Borough Council,29UM,09/08/2017,1152829,3693.60,P BINNIE CONSULTANCY LTD,07794784                 ,ECONOMIC DEVELOPMENT,Consultancy/Specialist Advice,Planning and Development Services
Swale Borough Council,29UM,09/08/2017,1152856,290.33,PORTAKABIN LIMITED,685303                   ,LEISURE & OPEN SPACES,Maintenance - Grounds,Environmental and Regulatory Services
Swale Borough Council,29UM,09/08/2017,1152722,1036.03,ROYAL MAIL GROUP LTD,4138203                  ,PROPERTY SERVICES,Postage,Holding Codes
Swale Borough Council,29UM,09/08/2017,1152729,375.00,RURAL PLANNING LTD,4426249                  ,PLANNING SERVICES,Fees And Services,Planning and Development Services
Swale Borough Council,29UM,09/08/2017,1152752,3750.00,REDACTED PERSONAL INFORMATION,                         ,FINANCIAL SERVICES,Regeneration Fund Expenditure,Ledger/Suspense Codes
Swale Borough Council,29UM,09/08/2017,1152664,400.00,SATEDA,                         ,COMMUNITY SAFETY,Fees And Services,Environmental and Regulatory Services
Swale Borough Council,29UM,09/08/2017,1152665,7250.00,SATEDA,                         ,COMMUNITY SAFETY,Grants & Subscriptions,Environmental and Regulatory Services
Swale Borough Council,29UM,09/08/2017,1152655,15000.00,SEVENOAKS DISTRICT COUNCIL,                         ,CONTRACT & PROCUREMENT,Fees And Services,Environmental and Regulatory Services
Swale Borough Council,29UM,09/08/2017,1152344,6611.43,SHARP BUSINESS SYSTEMS UK,2136901                  ,PROPERTY SERVICES,Equipment Maintenance,Internal Trading Cost Centres
Swale Borough Council,29UM,09/08/2017,1152345,2686.70,SHARP BUSINESS SYSTEMS UK,2136901                  ,PROPERTY SERVICES,Equipment Maintenance,Internal Trading Cost Centres
Swale Borough Council,29UM,09/08/2017,1151472,704.79,SHIRE INTEGRATED SYSTEMS LIMITED,3088673                  ,COMMUNITY SAFETY,Capital Constuction - CIS Works,Not used in this Structure
Swale Borough Council,29UM,09/08/2017,1152917,38.01,SODEXO MOTIVATION SOLUTIONS UK LTD,2680629                  ,HUMAN RESOURCES,Fees And Services,Corporate & Democratic Core
Swale Borough Council,29UM,09/08/2017,1152533,275.00,SOUTH & SOUTH EAST IN BLOOM,                         ,LEISURE & OPEN SPACES,Swale In Bloom,Cultural and Related Services
Swale Borough Council,29UM,09/08/2017,1152860,250.00,ST MARY OF CHARITY INFANTS SCH,                         ,DEMOCRATIC & ELECTORAL SERVICES,Hire Of Premises,Central Services to the Public
Swale Borough Council,29UM,09/08/2017,1152848,967.50,VENN GROUP LIMITED,                         ,MKS LEGAL SERVICES,Agency/Contract Staff,Internal Trading Cost Centres
Swale Borough Council,29UM,09/08/2017,1152849,560.00,VENN GROUP LIMITED,                         ,MKS LEGAL SERVICES,Agency/Contract Staff,Internal Trading Cost Centres
Swale Borough Council,29UM,09/08/2017,1152857,858.00,VENN GROUP LIMITED,                         ,MKS LEGAL SERVICES,Agency/Contract Staff,Internal Trading Cost Centres
Swale Borough Council,29UM,09/08/2017,1152483,1365.00,VIVID RESOURCING LIMITED,06459262                 ,PLANNING SERVICES,Agency/Contract Staff,Internal Trading Cost Centres
Swale Borough Council,29UM,09/08/2017,1152657,458.10,WHISTL UK LIMITED,04417047                 ,REVENUE SERVICES,Postage,Central Services to the Public
Swale Borough Council,29UM,09/08/2017,1152657,2.27,WHISTL UK LIMITED,04417047                 ,PLANNING SERVICES,Postage,Planning and Development Services
Swale Borough Council,29UM,09/08/2017,1152657,229.05,WHISTL UK LIMITED,04417047                 ,REVENUE SERVICES,Postage,Housing
Swale Borough Council,29UM,09/08/2017,1152657,2.44,WHISTL UK LIMITED,04417047                 ,LEISURE & OPEN SPACES,Postage,Internal Trading Cost Centres
Swale Borough Council,29UM,09/08/2017,1152657,28.67,WHISTL UK LIMITED,04417047                 ,CAR PARKS,Postage,Internal Trading Cost Centres
Swale Borough Council,29UM,09/08/2017,1152657,99.91,WHISTL UK LIMITED,04417047                 ,PROPERTY SERVICES,Postage,Holding Codes
Swale Borough Council,29UM,09/08/2017,1152657,282.47,WHISTL UK LIMITED,04417047                 ,DEMOCRATIC & ELECTORAL SERVICES,Postage,Central Services to the Public
Swale Borough Council,29UM,09/08/2017,1152843,442.04,WHISTL UK LIMITED,04417047                 ,REVENUE SERVICES,Postage,Central Services to the Public
Swale Borough Council,29UM,09/08/2017,1152843,2.79,WHISTL UK LIMITED,04417047                 ,PLANNING SERVICES,Postage,Planning and Development Services
Swale Borough Council,29UM,09/08/2017,1152843,221.02,WHISTL UK LIMITED,04417047                 ,REVENUE SERVICES,Postage,Housing
Swale Borough Council,29UM,09/08/2017,1152843,39.42,WHISTL UK LIMITED,04417047                 ,LEISURE & OPEN SPACES,Postage,Internal Trading Cost Centres
Swale Borough Council,29UM,09/08/2017,1152843,13.15,WHISTL UK LIMITED,04417047                 ,CAR PARKS,Postage,Internal Trading Cost Centres
Swale Borough Council,29UM,09/08/2017,1152843,75.45,WHISTL UK LIMITED,04417047                 ,PROPERTY SERVICES,Postage,Holding Codes
Swale Borough Council,29UM,09/08/2017,1152843,112.94,WHISTL UK LIMITED,04417047                 ,DEMOCRATIC & ELECTORAL SERVICES,Postage,Central Services to the Public
Swale Borough Council,29UM,09/08/2017,1152730,284.00,WILLOW TREE HOME SOLUTIONS LTD,                         ,HOUSING SERVICES,Staying Put small repairs (contractors),Housing
Swale Borough Council,29UM,09/08/2017,1152731,340.00,WILLOW TREE HOME SOLUTIONS LTD,                         ,HOUSING SERVICES,Staying Put small repairs (contractors),Housing
Swale Borough Council,29UM,09/08/2017,1152872,173.97,WILLOW TREE HOME SOLUTIONS LTD,                         ,HOUSING SERVICES,Staying Put small repairs (contractors),Housing
Swale Borough Council,29UM,09/08/2017,1152872,200.00,WILLOW TREE HOME SOLUTIONS LTD,                         ,HOUSING SERVICES,Staying Put small repairs (contractors),Housing
Swale Borough Council,29UM,16/08/2017,1152880,2800.00,A.C MACKLIN FENCING,10311550                 ,LEISURE & OPEN SPACES,Maintenance - Grounds,Environmental and Regulatory Services
Swale Borough Council,29UM,16/08/2017,1152880,1974.75,A.C MACKLIN FENCING,10311550                 ,LEISURE & OPEN SPACES,Maintenance - Grounds,Environmental and Regulatory Services
Swale Borough Council,29UM,16/08/2017,1153085,6516.00,ACORN MAINTENANCE SERVICES,3546898                  ,HOUSING SERVICES,Housing Renovation Grants,Not used in this Structure
Swale Borough Council,29UM,16/08/2017,1153007,1500.00,B W MAY AND SON LTD,1016572                  ,SERVICE DELIVERY,Private Contractors - CIS,Environmental and Regulatory Services
Swale Borough Council,29UM,16/08/2017,1153007,750.00,B W MAY AND SON LTD,1016572                  ,SERVICE DELIVERY,Private Contractors - CIS,Environmental and Regulatory Services
Swale Borough Council,29UM,16/08/2017,1153007,1310.00,B W MAY AND SON LTD,1016572                  ,SERVICE DELIVERY,Construction,Not used in this Structure
Swale Borough Council,29UM,16/08/2017,1152773,250.00,BOUGHTON UNDER BLEAN BOWLING CLUB,                         ,ECONOMY & COMMUNITIES,Grants & Subscriptions,Central Services to the Public
Swale Borough Council,29UM,16/08/2017,1153003,360.00,BR SKIP HIRE,                         ,LEISURE & OPEN SPACES,Maintenance - Grounds,Cultural and Related Services
Swale Borough Council,29UM,16/08/2017,1152601,6601.00,BRAMLEY ASSOCIATES,08764562                 ,DIRECTOR OF REGENERATION,Capitalised Fees And Charges,Not used in this Structure
Swale Borough Council,29UM,16/08/2017,1152946,400.00,BRENTS COMMUNITY ASSOCIATION,                         ,ECONOMY & COMMUNITIES,Grants & Subscriptions,Central Services to the Public
Swale Borough Council,29UM,16/08/2017,1152881,1750.00,BT DEVELOPMENTS,                         ,HOUSING SERVICES,B & B - Landlords Payments,Housing
Swale Borough Council,29UM,16/08/2017,1152937,3333.33,CHALKWELL COACH HIRE LTD,2520842                  ,PLANNING SERVICES,Payments in Year,Ledger/Suspense Codes
Swale Borough Council,29UM,16/08/2017,1152684,500.00,CRISIS AT CHRISTMAS,                         ,ECONOMY & COMMUNITIES,Grants & Subscriptions,Central Services to the Public
Swale Borough Council,29UM,16/08/2017,1153008,22.50,DCB (KENT) LIMITED,03532339                 ,HOUSING SERVICES,Non-Planned Building Maintenance,Housing
Swale Borough Council,29UM,16/08/2017,1153008,107.26,DCB (KENT) LIMITED,03532339                 ,PROPERTY SERVICES,Non-Planned Building Maintenance,Corporate & Democratic Core
Swale Borough Council,29UM,16/08/2017,1153008,110.00,DCB (KENT) LIMITED,03532339                 ,PROPERTY SERVICES,Non-Planned Building Maintenance,Corporate & Democratic Core
Swale Borough Council,29UM,16/08/2017,1153008,39.41,DCB (KENT) LIMITED,03532339                 ,PROPERTY SERVICES,Non-Planned Building Maintenance,Corporate & Democratic Core
Swale Borough Council,29UM,16/08/2017,1153008,22.50,DCB (KENT) LIMITED,03532339                 ,PROPERTY SERVICES,Non-Planned Building Maintenance,Corporate & Democratic Core
Swale Borough Council,29UM,16/08/2017,1153008,63.72,DCB (KENT) LIMITED,03532339                 ,LEISURE & OPEN SPACES,Non-Planned Building Maintenance,Cultural and Related Services
Swale Borough Council,29UM,16/08/2017,1153008,67.50,DCB (KENT) LIMITED,03532339                 ,CONTRACT & PROCUREMENT,Non-Planned Building Maintenance,Environmental and Regulatory Services
Swale Borough Council,29UM,16/08/2017,1153008,67.50,DCB (KENT) LIMITED,03532339                 ,CONTRACT & PROCUREMENT,Non-Planned Building Maintenance,Environmental and Regulatory Services
Swale Borough Council,29UM,16/08/2017,1153008,25.30,DCB (KENT) LIMITED,03532339                 ,CONTRACT & PROCUREMENT,Non-Planned Building Maintenance,Environmental and Regulatory Services
Swale Borough Council,29UM,16/08/2017,1153008,22.50,DCB (KENT) LIMITED,03532339                 ,CONTRACT & PROCUREMENT,Non-Planned Building Maintenance,Environmental and Regulatory Services
Swale Borough Council,29UM,16/08/2017,1153008,43.00,DCB (KENT) LIMITED,03532339                 ,LEISURE & OPEN SPACES,Non-Planned Building Maintenance,Cultural and Related Services
Swale Borough Council,29UM,16/08/2017,1152866,320.00,ERYL DAVIES VETERINARY SURGEON,                         ,ENVIRONMENTAL RESPONSE TEAM,Fees - Veterinary,Environmental and Regulatory Services
Swale Borough Council,29UM,16/08/2017,1152604,500.00,FAVERSHAM CARNIVAL CLUB,                         ,ECONOMY & COMMUNITIES,Grants & Subscriptions,Central Services to the Public
Swale Borough Council,29UM,16/08/2017,1152993,5000.00,FMC (FABRICS & MAINT CONT) LTD,07509198                 ,COMMUNITY SAFETY,Capital Constuction - CIS Works,Not used in this Structure
Swale Borough Council,29UM,16/08/2017,1152993,8905.75,FMC (FABRICS & MAINT CONT) LTD,07509198                 ,COMMUNITY SAFETY,Capital Constuction - CIS Works,Not used in this Structure
Swale Borough Council,29UM,16/08/2017,1152993,1000.00,FMC (FABRICS & MAINT CONT) LTD,07509198                 ,COMMUNITY SAFETY,Capital Constuction - CIS Works,Not used in this Structure
Swale Borough Council,29UM,16/08/2017,1152993,-447.17,FMC (FABRICS & MAINT CONT) LTD,07509198                 ,COMMUNITY SAFETY,Capital Constuction - CIS Works,Not used in this Structure
Swale Borough Council,29UM,16/08/2017,1152945,1125.06,GLASDON U.K.LIMITED,2160576                  ,SERVICE DELIVERY,Maintenance - Grounds,Cultural and Related Services
Swale Borough Council,29UM,16/08/2017,1152781,13284.00,GOV DELIVERY LLC,                         ,COMMUNICATIONS,Fees And Services,Internal Trading Cost Centres
Swale Borough Council,29UM,16/08/2017,1152983,250.00,HARTLIP PAROCHIAL CHURCH COUNCIL,                         ,ECONOMY & COMMUNITIES,Grants & Subscriptions,Central Services to the Public
Swale Borough Council,29UM,16/08/2017,1152977,269.85,JEWSON LIMITED,348407                   ,LEISURE & OPEN SPACES,Maintenance - Grounds,Cultural and Related Services
Swale Borough Council,29UM,16/08/2017,1152988,544.05,KENT COUNTY COUNCIL (KCS),                         ,PROPERTY SERVICES,Gas,Corporate & Democratic Core
Swale Borough Council,29UM,16/08/2017,1153013,3601.65,KENT COUNTY COUNCIL (KCS),                         ,PROPERTY SERVICES,Electricity,Corporate & Democratic Core
Swale Borough Council,29UM,16/08/2017,1153079,3000.00,KENT SURREY AND SUSSEX CRC LTD,08802556                 ,COMMUNITY SAFETY,Grants & Subscriptions,Planning and Development Services
Swale Borough Council,29UM,16/08/2017,1152865,7040.00,KINGDOM SECURITY LIMITED,2795197                  ,ENVIRONMENTAL RESPONSE TEAM,Fees And Services,Planning and Development Services
Swale Borough Council,29UM,16/08/2017,1153111,238.00,LAND REGISTRY - (DT),                         ,PROPERTY SERVICES,Fees - Land Registry,Trading Undertaking
Swale Borough Council,29UM,16/08/2017,1153111,412.00,LAND REGISTRY - (DT),                         ,REVENUE SERVICES,Fees - Land Registry,Central Services to the Public
Swale Borough Council,29UM,16/08/2017,1153111,192.00,LAND REGISTRY - (DT),                         ,PLANNING SERVICES,Fees - Land Registry,Planning and Development Services
Swale Borough Council,29UM,16/08/2017,1153111,38.00,LAND REGISTRY - (DT),                         ,PLANNING SERVICES,Fees - Land Registry,Planning and Development Services
Swale Borough Council,29UM,16/08/2017,1153111,51.00,LAND REGISTRY - (DT),                         ,ECONOMIC DEVELOPMENT,Fees - Land Registry,Planning and Development Services
Swale Borough Council,29UM,16/08/2017,1153111,6.00,LAND REGISTRY - (DT),                         ,HOUSING SERVICES,Fees - Land Registry,Housing
Swale Borough Council,29UM,16/08/2017,1153111,12.00,LAND REGISTRY - (DT),                         ,LEISURE & OPEN SPACES,Fees - Land Registry,Internal Trading Cost Centres
Swale Borough Council,29UM,16/08/2017,1153111,56.00,LAND REGISTRY - (DT),                         ,PLANNING SERVICES,Fees - Land Registry,Internal Trading Cost Centres
Swale Borough Council,29UM,16/08/2017,1153111,6.00,LAND REGISTRY - (DT),                         ,ECONOMY & COMMUNITIES,Fees - Land Registry,Internal Trading Cost Centres
Swale Borough Council,29UM,16/08/2017,1153111,36.00,LAND REGISTRY - (DT),                         ,CONTRACT & PROCUREMENT,Fees - Land Registry,Internal Trading Cost Centres
Swale Borough Council,29UM,16/08/2017,1153111,81.00,LAND REGISTRY - (DT),                         ,ENVIRONMENTAL RESPONSE TEAM,Fees - Land Registry,Internal Trading Cost Centres
Swale Borough Council,29UM,16/08/2017,1153111,36.00,LAND REGISTRY - (DT),                         ,MKS ENVIRONMENTAL SERVICES,Fees - Land Registry,Internal Trading Cost Centres
Swale Borough Council,29UM,16/08/2017,1153111,12.00,LAND REGISTRY - (DT),                         ,LICENCING,Fees - Land Registry,Environmental and Regulatory Services
Swale Borough Council,29UM,16/08/2017,1153111,43.00,LAND REGISTRY - (DT),                         ,COMMUNITY SAFETY,Capitalised Fees And Charges,Not used in this Structure
Swale Borough Council,29UM,16/08/2017,1153111,112.00,LAND REGISTRY - (DT),                         ,LEISURE & OPEN SPACES,Fees - Land Registry,Cultural and Related Services
Swale Borough Council,29UM,16/08/2017,1153111,27.00,LAND REGISTRY - (DT),                         ,HOUSING SERVICES,Fees - Land Registry,Housing
Swale Borough Council,29UM,16/08/2017,1153111,99.00,LAND REGISTRY - (DT),                         ,HOUSING SERVICES,Fees - Land Registry,Housing
Swale Borough Council,29UM,16/08/2017,1152968,300.00,LEMAR LIMITED,04350292                 ,SERVICE DELIVERY,Private Contractors - CIS,Highway and Transport Services
Swale Borough Council,29UM,16/08/2017,1152968,80.00,LEMAR LIMITED,04350292                 ,SERVICE DELIVERY,Private Contractors - CIS,Highway and Transport Services
Swale Borough Council,29UM,16/08/2017,1152767,2705.00,MAGEES GUESTHOUSE,                         ,HOUSING SERVICES,B & B - Landlords Payments,Housing
Swale Borough Council,29UM,16/08/2017,1153005,1640.00,MAGEES GUESTHOUSE,                         ,HOUSING SERVICES,B & B - Landlords Payments,Housing
Swale Borough Council,29UM,16/08/2017,1152904,9500.00,MAIDSTONE BOROUGH COUNCIL,                         ,DEMOCRATIC & ELECTORAL SERVICES,Grants & Subscriptions,Corporate & Democratic Core
Swale Borough Council,29UM,16/08/2017,1153018,1295.00,MATCHTECH,4426336                  ,PLANNING SERVICES,Agency/Contract Staff,Internal Trading Cost Centres
Swale Borough Council,29UM,16/08/2017,1153019,1102.50,MATCHTECH,4426336                  ,PLANNING SERVICES,Agency/Contract Staff,Internal Trading Cost Centres
Swale Borough Council,29UM,16/08/2017,1153032,8550.50,MEDWAY PUBLIC SERVICES LTD,10041989                 ,COMMUNITY SAFETY,CCTV Monitoring Service,Environmental and Regulatory Services
Swale Borough Council,29UM,16/08/2017,1152743,6.50,O2 (UK) LTD,1743099                  ,COMMUNITY SAFETY,Cellphone,Planning and Development Services
Swale Borough Council,29UM,16/08/2017,1152743,7.00,O2 (UK) LTD,1743099                  ,COMMUNITY SAFETY,Cellphone,Planning and Development Services
Swale Borough Council,29UM,16/08/2017,1152743,52.00,O2 (UK) LTD,1743099                  ,COMMUNITY SAFETY,Cellphone,Environmental and Regulatory Services
Swale Borough Council,29UM,16/08/2017,1152743,9.50,O2 (UK) LTD,1743099                  ,TRANSFORMATION PROJECT,Cellphone,Corporate & Democratic Core
Swale Borough Council,29UM,16/08/2017,1152743,9.50,O2 (UK) LTD,1743099                  ,POLICY,Cellphone,Corporate & Democratic Core
Swale Borough Council,29UM,16/08/2017,1152743,10.00,O2 (UK) LTD,1743099                  ,PLANNING SERVICES,Cellphone,Planning and Development Services
Swale Borough Council,29UM,16/08/2017,1152743,6.00,O2 (UK) LTD,1743099                  ,PLANNING SERVICES,Cellphone,Planning and Development Services
Swale Borough Council,29UM,16/08/2017,1152743,19.50,O2 (UK) LTD,1743099                  ,EMERGENCY PLANNING,Cellphone,Central Services to the Public
Swale Borough Council,29UM,16/08/2017,1152743,26.00,O2 (UK) LTD,1743099                  ,SERVICE DELIVERY,Cellphone,Cultural and Related Services
Swale Borough Council,29UM,16/08/2017,1152743,41.00,O2 (UK) LTD,1743099                  ,HOUSING SERVICES,Cellphone,Housing
Swale Borough Council,29UM,16/08/2017,1152743,23.55,O2 (UK) LTD,1743099                  ,REVENUE SERVICES,Cellphone,Housing
Swale Borough Council,29UM,16/08/2017,1152743,7.00,O2 (UK) LTD,1743099                  ,HOUSING SERVICES,Cellphone,Housing
Swale Borough Council,29UM,16/08/2017,1152743,7.00,O2 (UK) LTD,1743099                  ,DEMOCRATIC & ELECTORAL SERVICES,Cellphone,Internal Trading Cost Centres
Swale Borough Council,29UM,16/08/2017,1152743,2.00,O2 (UK) LTD,1743099                  ,LEISURE & OPEN SPACES,Cellphone,Internal Trading Cost Centres
Swale Borough Council,29UM,16/08/2017,1152743,19.00,O2 (UK) LTD,1743099                  ,LICENCING,Cellphone,Internal Trading Cost Centres
Swale Borough Council,29UM,16/08/2017,1152743,79.40,O2 (UK) LTD,1743099                  ,PROPERTY SERVICES,Cellphone,Internal Trading Cost Centres
Swale Borough Council,29UM,16/08/2017,1152743,7.00,O2 (UK) LTD,1743099                  ,ECONOMY & COMMUNITIES,Cellphone,Internal Trading Cost Centres
Swale Borough Council,29UM,16/08/2017,1152743,30.56,O2 (UK) LTD,1743099                  ,ECONOMIC DEVELOPMENT,Cellphone,Internal Trading Cost Centres
Swale Borough Council,29UM,16/08/2017,1152743,18.54,O2 (UK) LTD,1743099                  ,SERVICE DELIVERY,Cellphone,Internal Trading Cost Centres
Swale Borough Council,29UM,16/08/2017,1152743,19.00,O2 (UK) LTD,1743099                  ,TOURISM & SPORTS DEVELOPMENT,Cellphone,Internal Trading Cost Centres
Swale Borough Council,29UM,16/08/2017,1152743,137.21,O2 (UK) LTD,1743099                  ,CONTRACT & PROCUREMENT,Cellphone,Internal Trading Cost Centres
Swale Borough Council,29UM,16/08/2017,1152743,49.71,O2 (UK) LTD,1743099                  ,MKS ENVIRONMENTAL SERVICES,Cellphone,Internal Trading Cost Centres
Swale Borough Council,29UM,16/08/2017,1152743,60.00,O2 (UK) LTD,1743099                  ,MKS ENVIRONMENTAL SERVICES,Cellphone,Internal Trading Cost Centres
Swale Borough Council,29UM,16/08/2017,1152743,96.96,O2 (UK) LTD,1743099                  ,ENVIRONMENTAL RESPONSE TEAM,Cellphone,Internal Trading Cost Centres
Swale Borough Council,29UM,16/08/2017,1152743,12.11,O2 (UK) LTD,1743099                  ,PLANNING SERVICES,Cellphone,Internal Trading Cost Centres
Swale Borough Council,29UM,16/08/2017,1152743,76.00,O2 (UK) LTD,1743099                  ,LEISURE & OPEN SPACES,Cellphone,Internal Trading Cost Centres
Swale Borough Council,29UM,16/08/2017,1152743,19.50,O2 (UK) LTD,1743099                  ,CHIEF EXECUTIVE,Cellphone,Internal Trading Cost Centres
Swale Borough Council,29UM,16/08/2017,1152743,9.50,O2 (UK) LTD,1743099                  ,DIRECTOR OF REGENERATION,Cellphone,Internal Trading Cost Centres
Swale Borough Council,29UM,16/08/2017,1152743,21.00,O2 (UK) LTD,1743099                  ,COMMISSIONING & CUSTOMER CONTACT,Cellphone,Internal Trading Cost Centres
Swale Borough Council,29UM,16/08/2017,1152743,7.23,O2 (UK) LTD,1743099                  ,COMMISSIONING & CUSTOMER CONTACT,Cellphone,Internal Trading Cost Centres
Swale Borough Council,29UM,16/08/2017,1152743,10.52,O2 (UK) LTD,1743099                  ,POLICY,Cellphone,Internal Trading Cost Centres
Swale Borough Council,29UM,16/08/2017,1152743,25.18,O2 (UK) LTD,1743099                  ,COMMUNICATIONS,Cellphone,Internal Trading Cost Centres
Swale Borough Council,29UM,16/08/2017,1152743,38.00,O2 (UK) LTD,1743099                  ,ENVIRONMENTAL RESPONSE TEAM,Cellphone,Internal Trading Cost Centres
Swale Borough Council,29UM,16/08/2017,1152743,32.00,O2 (UK) LTD,1743099                  ,MKS LEGAL SERVICES,Cellphone,Internal Trading Cost Centres
Swale Borough Council,29UM,16/08/2017,1152743,2.00,O2 (UK) LTD,1743099                  ,TOURISM & SPORTS DEVELOPMENT,Cellphone,Internal Trading Cost Centres
Swale Borough Council,29UM,16/08/2017,1152743,2.00,O2 (UK) LTD,1743099                  ,HOUSING SERVICES,Cellphone,Housing
Swale Borough Council,29UM,16/08/2017,1152743,30.00,O2 (UK) LTD,1743099                  ,HOUSING SERVICES,Cellphone,Housing
Swale Borough Council,29UM,16/08/2017,1152743,33.22,O2 (UK) LTD,1743099                  ,ENVIRONMENTAL RESPONSE TEAM,Cellphone,Environmental and Regulatory Services
Swale Borough Council,29UM,16/08/2017,1152743,7.45,O2 (UK) LTD,1743099                  ,TOURISM & SPORTS DEVELOPMENT,Cellphone,Cultural and Related Services
Swale Borough Council,29UM,16/08/2017,1152743,40.00,O2 (UK) LTD,1743099                  ,HOUSING SERVICES,Cellphone,Housing
Swale Borough Council,29UM,16/08/2017,1152887,665.00,REARDON PROPERTIES,                         ,HOUSING SERVICES,B & B - Landlords Payments,Housing
Swale Borough Council,29UM,16/08/2017,1152888,490.00,REARDON PROPERTIES,                         ,HOUSING SERVICES,B & B - Landlords Payments,Housing
Swale Borough Council,29UM,16/08/2017,1152889,740.00,REARDON PROPERTIES,                         ,HOUSING SERVICES,B & B - Landlords Payments,Housing
Swale Borough Council,29UM,16/08/2017,1153006,541.51,ROYAL BRITISH LEGION S/BOURNE & MILTON,                         ,TOURISM & SPORTS DEVELOPMENT,Grants & Subscriptions,Cultural and Related Services
Swale Borough Council,29UM,16/08/2017,1153053,1122.02,SCOTTISH WATER BUSINESS STREAM LTD,SC294924                 ,PROPERTY SERVICES,Water - Metered,Corporate & Democratic Core
Swale Borough Council,29UM,16/08/2017,1153053,1844.86,SCOTTISH WATER BUSINESS STREAM LTD,SC294924                 ,PROPERTY SERVICES,Water - Metered,Corporate & Democratic Core
Swale Borough Council,29UM,16/08/2017,1153053,24.41,SCOTTISH WATER BUSINESS STREAM LTD,SC294924                 ,PROPERTY SERVICES,Water - Metered,Corporate & Democratic Core
Swale Borough Council,29UM,16/08/2017,1152871,10994.80,SERCO LEISURE OPERATING LIMITED,04687478                 ,LEISURE & OPEN SPACES,Procurement Contracts Only,Cultural and Related Services
Swale Borough Council,29UM,16/08/2017,1153016,970.00,SITTINGBOURNE ARTISAN MARKET,                         ,TOURISM & SPORTS DEVELOPMENT,Fees And Services,Trading Undertaking
Swale Borough Council,29UM,16/08/2017,1152910,304.00,SITTINGBOURNE BALLOONS,                         ,LEISURE & OPEN SPACES,Construction,Not used in this Structure
Swale Borough Council,29UM,16/08/2017,1152748,640.00,STRI LTD,3188329                  ,LEISURE & OPEN SPACES,Consultancy/Specialist Advice,Cultural and Related Services
Swale Borough Council,29UM,16/08/2017,1153084,1000.00,SWALE SCHOOLS FOOTBALL ASSOCIATION,                         ,TOURISM & SPORTS DEVELOPMENT,Grants & Subscriptions,Cultural and Related Services
Swale Borough Council,29UM,16/08/2017,1152981,1384.13,THE COPYRIGHT LICENSING AGENCY LTD,                         ,COMMUNICATIONS,Fees - Licence,Internal Trading Cost Centres
Swale Borough Council,29UM,16/08/2017,1152970,276.00,THE OSPREY COMPANY,                         ,LEISURE & OPEN SPACES,Equipment Purchase,Cultural and Related Services
Swale Borough Council,29UM,16/08/2017,1152979,1425.00,THE OYSTER PARTNERSHIP,05020374                 ,PLANNING SERVICES,Agency/Contract Staff,Internal Trading Cost Centres
Swale Borough Council,29UM,16/08/2017,1152902,1365.00,TRAFALGAR TAVERN LTD,07999329                 ,HOUSING SERVICES,B & B - Landlords Payments,Housing
Swale Borough Council,29UM,16/08/2017,1153000,967.50,VENN GROUP LIMITED,                         ,MKS LEGAL SERVICES,Agency/Contract Staff,Internal Trading Cost Centres
Swale Borough Council,29UM,16/08/2017,1153001,741.00,VENN GROUP LIMITED,                         ,MKS LEGAL SERVICES,Agency/Contract Staff,Internal Trading Cost Centres
Swale Borough Council,29UM,16/08/2017,1153015,560.00,VENN GROUP LIMITED,                         ,MKS LEGAL SERVICES,Agency/Contract Staff,Internal Trading Cost Centres
Swale Borough Council,29UM,16/08/2017,1152863,2747.50,VIVID RESOURCING LIMITED,06459262                 ,PLANNING SERVICES,Agency/Contract Staff,Internal Trading Cost Centres
Swale Borough Council,29UM,16/08/2017,1152742,11086.00,WHITE RESIDENTIAL,                         ,HOUSING SERVICES,B & B - Landlords Payments,Housing
Swale Borough Council,29UM,16/08/2017,1152389,45595.06,WICKSTEED LEISURE LTD,603152                   ,LEISURE & OPEN SPACES,Construction,Not used in this Structure
Swale Borough Council,29UM,16/08/2017,1152944,312.00,WILLOW TREE HOME SOLUTIONS LTD,                         ,HOUSING SERVICES,Staying Put small repairs (contractors),Housing
Swale Borough Council,29UM,23/08/2017,1153229,1580.29,ACORN MAINTENANCE SERVICES,3546898                  ,HOUSING SERVICES,Housing Renovation Grants,Not used in this Structure
Swale Borough Council,29UM,23/08/2017,1153227,2340.00,ASCENDIT LIFTS LTD,3493530                  ,HOUSING SERVICES,Housing Renovation Grants,Not used in this Structure
Swale Borough Council,29UM,23/08/2017,1152670,8333.70,BEMROSE MOBILE LTD,                         ,CAR PARKS,Fees - Licence,Highway and Transport Services
Swale Borough Council,29UM,23/08/2017,1153066,666.81,BLENWOOD LTD,4383277                  ,CAR PARKS,Tree Maintenance,Highway and Transport Services
Swale Borough Council,29UM,23/08/2017,1153113,3862.35,BLENWOOD LTD,4383277                  ,LEISURE & OPEN SPACES,Tree Maintenance,Cultural and Related Services
Swale Borough Council,29UM,23/08/2017,1153121,1000.00,BLUE TOWN HERITAGE CENTRE LTD,                         ,TOURISM & SPORTS DEVELOPMENT,Grants & Subscriptions,Cultural and Related Services
Swale Borough Council,29UM,23/08/2017,1152986,9383.00,CBS MAINTENANCE SERVICES LTD,                         ,PROPERTY SERVICES,Non-Planned Building Maintenance,Corporate & Democratic Core
Swale Borough Council,29UM,23/08/2017,1152987,784.78,CBS MAINTENANCE SERVICES LTD,                         ,PROPERTY SERVICES,Non-Planned Building Maintenance,Corporate & Democratic Core
Swale Borough Council,29UM,23/08/2017,1152949,3552.61,COMENSURA LTD,04085767                 ,HUMAN RESOURCES,Agency/Contract Staff,Internal Trading Cost Centres
Swale Borough Council,29UM,23/08/2017,1153098,7225.68,COMENSURA LTD,04085767                 ,HUMAN RESOURCES,Agency/Contract Staff,Internal Trading Cost Centres
Swale Borough Council,29UM,23/08/2017,1153025,359.00,CONTRACT SECURITY SERVICES,2461362                  ,EXCHEQUER,Cash Security,Internal Trading Cost Centres
Swale Borough Council,29UM,23/08/2017,1153025,4318.08,CONTRACT SECURITY SERVICES,2461362                  ,CAR PARKS,Cash Security,Highway and Transport Services
Swale Borough Council,29UM,23/08/2017,1153082,350.00,CRAIGDENE LTD,281322                   ,LEISURE & OPEN SPACES,Capitalised Fees And Charges,Not used in this Structure
Swale Borough Council,29UM,23/08/2017,1153089,7600.00,ECO GREEN ROOFS LTD,07482175                 ,COMMUNITY SAFETY,Capital Constuction - CIS Works,Not used in this Structure
Swale Borough Council,29UM,23/08/2017,1153068,5484.30,EIBE PLAY LTD,                         ,LEISURE & OPEN SPACES,Construction,Not used in this Structure
Swale Borough Council,29UM,23/08/2017,1152778,169976.98,HAGS-SMP LIMITED,00908021                 ,LEISURE & OPEN SPACES,Capital Constuction - CIS Works,Not used in this Structure
Swale Borough Council,29UM,23/08/2017,1153033,-5000.00,HAGS-SMP LIMITED,00908021                 ,LEISURE & OPEN SPACES,Capital Constuction - CIS Works,Not used in this Structure
Swale Borough Council,29UM,23/08/2017,1153057,2725.04,HALAROSE LIMITED,1362834                  ,DEMOCRATIC & ELECTORAL SERVICES,Fees And Services,Central Services to the Public
Swale Borough Council,29UM,23/08/2017,1152942,963.20,HI WAY SERVICES LTD,2850815                  ,CAR PARKS,Road Lining,Highway and Transport Services
Swale Borough Council,29UM,23/08/2017,1153230,3060.00,HUBBARD & HOUGHTON CONSTRUCTION LTD,                         ,HOUSING SERVICES,Housing Renovation Grants,Not used in this Structure
Swale Borough Council,29UM,23/08/2017,1153130,433.50,IDENTIBADGE CO LTD,2761126                  ,LICENCING,Stationery,Environmental and Regulatory Services
Swale Borough Council,29UM,23/08/2017,1152884,4850.00,J N CLEARANCE,                         ,CONTRACT & PROCUREMENT,"Clearance Of Waste,Fly Tipping",Environmental and Regulatory Services
Swale Borough Council,29UM,23/08/2017,1153133,2000.00,KENT COUNTY COUNCIL,                         ,COMMUNITY SAFETY,Fees And Services,Environmental and Regulatory Services
Swale Borough Council,29UM,23/08/2017,1153203,750.00,LAWYERS IN LOCAL GOVERNMENT,8379439                  ,MKS LEGAL SERVICES,Fees And Services,Internal Trading Cost Centres
Swale Borough Council,29UM,23/08/2017,1152974,300.00,LEMAR LIMITED,04350292                 ,CAR PARKS,Maintenance - Grounds,Highway and Transport Services
Swale Borough Council,29UM,23/08/2017,1152974,75.00,LEMAR LIMITED,04350292                 ,CAR PARKS,Maintenance - Grounds,Highway and Transport Services
Swale Borough Council,29UM,23/08/2017,1153069,300.00,LEMAR LIMITED,04350292                 ,SERVICE DELIVERY,Private Contractors - CIS,Highway and Transport Services
Swale Borough Council,29UM,23/08/2017,1153069,170.00,LEMAR LIMITED,04350292                 ,SERVICE DELIVERY,Private Contractors - CIS,Highway and Transport Services
Swale Borough Council,29UM,23/08/2017,1153071,250.00,LEMAR LIMITED,04350292                 ,CAR PARKS,Maintenance - Grounds,Highway and Transport Services
Swale Borough Council,29UM,23/08/2017,1153072,300.00,LEMAR LIMITED,04350292                 ,CAR PARKS,Maintenance - Grounds,Highway and Transport Services
Swale Borough Council,29UM,23/08/2017,1153072,75.00,LEMAR LIMITED,04350292                 ,CAR PARKS,Maintenance - Grounds,Highway and Transport Services
Swale Borough Council,29UM,23/08/2017,1153074,600.00,LEMAR LIMITED,04350292                 ,LEISURE & OPEN SPACES,Maintenance - Grounds,Cultural and Related Services
Swale Borough Council,29UM,23/08/2017,1153074,745.00,LEMAR LIMITED,04350292                 ,LEISURE & OPEN SPACES,Maintenance - Grounds,Cultural and Related Services
Swale Borough Council,29UM,23/08/2017,1153143,434.85,LLOYDS BANK - (DT),                         ,FINANCIAL SERVICES,Bank Charges,Corporate & Democratic Core
Swale Borough Council,29UM,23/08/2017,1153188,949.00,M.T.S. CLEANSING SERVICES LTD,2045340                  ,LEISURE & OPEN SPACES,Clearing Cesspools,Cultural and Related Services
Swale Borough Council,29UM,23/08/2017,1153155,1295.00,MATCHTECH,4426336                  ,PLANNING SERVICES,Agency/Contract Staff,Internal Trading Cost Centres
Swale Borough Council,29UM,23/08/2017,1152893,868.00,MAYLOW CONSTRUCTION LTD,                         ,LEISURE & OPEN SPACES,Maintenance - Grounds,Cultural and Related Services
Swale Borough Council,29UM,23/08/2017,1152894,849.00,MAYLOW CONSTRUCTION LTD,                         ,LEISURE & OPEN SPACES,Maintenance - Grounds,Cultural and Related Services
Swale Borough Council,29UM,23/08/2017,1152895,539.00,MAYLOW CONSTRUCTION LTD,                         ,LEISURE & OPEN SPACES,Maintenance - Grounds,Cultural and Related Services
Swale Borough Council,29UM,23/08/2017,1152901,749.00,MAYLOW CONSTRUCTION LTD,                         ,LEISURE & OPEN SPACES,Maintenance - Grounds,Cultural and Related Services
Swale Borough Council,29UM,23/08/2017,1152939,1900.48,MAYLOW CONSTRUCTION LTD,                         ,LEISURE & OPEN SPACES,Equipment Purchase,Cultural and Related Services
Swale Borough Council,29UM,23/08/2017,1153063,493.00,MAYLOW CONSTRUCTION LTD,                         ,LEISURE & OPEN SPACES,Maintenance - Grounds,Cultural and Related Services
Swale Borough Council,29UM,23/08/2017,1153077,588.00,MAYLOW CONSTRUCTION LTD,                         ,LEISURE & OPEN SPACES,Maintenance - Grounds,Environmental and Regulatory Services
Swale Borough Council,29UM,23/08/2017,1153097,881.00,MAYLOW CONSTRUCTION LTD,                         ,LEISURE & OPEN SPACES,Maintenance - Grounds,Cultural and Related Services
Swale Borough Council,29UM,23/08/2017,1153034,421.50,MEDWAY ACCOMMODATION LIMITED,                         ,HOUSING SERVICES,B & B - Landlords Payments,Housing
Swale Borough Council,29UM,23/08/2017,1153034,2023.20,MEDWAY ACCOMMODATION LIMITED,                         ,HOUSING SERVICES,B & B - Landlords Payments,Housing
Swale Borough Council,29UM,23/08/2017,1153035,2425.60,MEDWAY ACCOMMODATION LIMITED,                         ,HOUSING SERVICES,B & B - Landlords Payments,Housing
Swale Borough Council,29UM,23/08/2017,1153035,505.33,MEDWAY ACCOMMODATION LIMITED,                         ,HOUSING SERVICES,B & B - Landlords Payments,Housing
Swale Borough Council,29UM,23/08/2017,1152912,17434.56,MONITOR CLEANING SERVICES LTD,02526388                 ,CONTRACT & PROCUREMENT,Private Contractors,Environmental and Regulatory Services
Swale Borough Council,29UM,23/08/2017,1153274,321.00,REDACTED PERSONAL INFORMATION,                         ,REVENUE SERVICES,Court Costs,Central Services to the Public
Swale Borough Council,29UM,23/08/2017,4500591,-321.00,REDACTED PERSONAL INFORMATION,                         ,REVENUE SERVICES,Court Costs,Central Services to the Public
Swale Borough Council,29UM,23/08/2017,1153147,1275.00,REDACTED PERSONAL INFORMATION,                         ,PLANNING SERVICES,Legal Fees,Internal Trading Cost Centres
Swale Borough Council,29UM,23/08/2017,1153147,255.00,REDACTED PERSONAL INFORMATION,                         ,PLANNING SERVICES,Legal Fees,Internal Trading Cost Centres
Swale Borough Council,29UM,23/08/2017,1153172,3368.61,NEOPOST LIMITED,                         ,DEMOCRATIC & ELECTORAL SERVICES,Equipment Maintenance,Central Services to the Public
Swale Borough Council,29UM,23/08/2017,1152991,550.00,NORMAN BROMLEY PARTNERSHIP LLP,                         ,COMMUNITY SAFETY,Capitalised Fees And Charges,Not used in this Structure
Swale Borough Council,29UM,23/08/2017,1153049,259.29,NPOWER,                         ,LEISURE & OPEN SPACES,Electricity,Cultural and Related Services
Swale Borough Council,29UM,23/08/2017,1153050,278.24,NPOWER,                         ,CAR PARKS,Electricity,Highway and Transport Services
Swale Borough Council,29UM,23/08/2017,1152990,300.00,PHOENIX SOFTWARE LTD,                         ,PLANNING SERVICES,Grants & Subscriptions,Planning and Development Services
Swale Borough Council,29UM,23/08/2017,1153160,263.50,PREMIER PAPER GROUP LTD,                         ,PROPERTY SERVICES,Paper,Internal Trading Cost Centres
Swale Borough Council,29UM,23/08/2017,1153017,509.44,PSR LIGHTING AND SIGNS LTD,07159892                 ,CAR PARKS,Maintenance - Grounds,Highway and Transport Services
Swale Borough Council,29UM,23/08/2017,1153268,23.11,RBS PURCHASING CARD (DT),                         ,COMMUNITY SAFETY,Stationery,Environmental and Regulatory Services
Swale Borough Council,29UM,23/08/2017,1153268,7.40,RBS PURCHASING CARD (DT),                         ,DEMOCRATIC & ELECTORAL SERVICES,Catering Provisions,Corporate & Democratic Core
Swale Borough Council,29UM,23/08/2017,1153268,362.50,RBS PURCHASING CARD (DT),                         ,DEMOCRATIC & ELECTORAL SERVICES,Conference,Corporate & Democratic Core
Swale Borough Council,29UM,23/08/2017,1153268,362.50,RBS PURCHASING CARD (DT),                         ,DEMOCRATIC & ELECTORAL SERVICES,Conference,Corporate & Democratic Core
Swale Borough Council,29UM,23/08/2017,1153268,362.50,RBS PURCHASING CARD (DT),                         ,CHIEF EXECUTIVE,Conference,Internal Trading Cost Centres
Swale Borough Council,29UM,23/08/2017,1153269,136.15,RBS PURCHASING CARD (DT) - SAINSBURYS,,TOURISM & SPORTS DEVELOPMENT,Catering Provisions,Ledger/Suspense Codes
Swale Borough Council,29UM,23/08/2017,1153270,56.66,RBS PURCHASING CARD (DT) - MAPLIN,,PROPERTY SERVICES,Equipment Purchase,Corporate & Democratic Core
Swale Borough Council,29UM,23/08/2017,1153270,94.13,RBS PURCHASING CARD (DT) - DISPLAYSENSE,,PROPERTY SERVICES,Equipment Purchase,Corporate & Democratic Core
Swale Borough Council,29UM,23/08/2017,1153270,35.78,RBS PURCHASING CARD (DT) - THIRSTYBOX,,PROPERTY SERVICES,Equipment Purchase,Corporate & Democratic Core
Swale Borough Council,29UM,23/08/2017,1153271,35.00,RBS PURCHASING CARD (DT) - ICO,                         ,DEMOCRATIC & ELECTORAL SERVICES,Fees And Services,Internal Trading Cost Centres
Swale Borough Council,29UM,23/08/2017,1153271,35.00,RBS PURCHASING CARD (DT) - ICO,,DEMOCRATIC & ELECTORAL SERVICES,Members - Outside Bodies Allowance,Corporate & Democratic Core
Swale Borough Council,29UM,23/08/2017,1153271,35.00,RBS PURCHASING CARD (DT) - ICO,,DEMOCRATIC & ELECTORAL SERVICES,Members - Outside Bodies Allowance,Corporate & Democratic Core
Swale Borough Council,29UM,23/08/2017,1153271,35.00,RBS PURCHASING CARD (DT) - ICO,,DEMOCRATIC & ELECTORAL SERVICES,Members - Outside Bodies Allowance,Corporate & Democratic Core
Swale Borough Council,29UM,23/08/2017,1153271,35.00,RBS PURCHASING CARD (DT) - ICO,,DEMOCRATIC & ELECTORAL SERVICES,Members - Outside Bodies Allowance,Corporate & Democratic Core
Swale Borough Council,29UM,23/08/2017,1153271,35.00,RBS PURCHASING CARD (DT) - ICO,,DEMOCRATIC & ELECTORAL SERVICES,Members - Outside Bodies Allowance,Corporate & Democratic Core
Swale Borough Council,29UM,23/08/2017,1153271,35.00,RBS PURCHASING CARD (DT) - ICO,,DEMOCRATIC & ELECTORAL SERVICES,Members - Outside Bodies Allowance,Corporate & Democratic Core
Swale Borough Council,29UM,23/08/2017,1153271,35.00,RBS PURCHASING CARD (DT) - ICO,,DEMOCRATIC & ELECTORAL SERVICES,Members - Outside Bodies Allowance,Corporate & Democratic Core
Swale Borough Council,29UM,23/08/2017,1153272,3.00,RBS PURCHASING CARD (DT) - WILKO,,CHIEF EXECUTIVE,Stationery,Public Health
Swale Borough Council,29UM,23/08/2017,1153272,8.67,RBS PURCHASING CARD (DT) - POUNDLAND,,CHIEF EXECUTIVE,Stationery,Public Health
Swale Borough Council,29UM,23/08/2017,1153272,13.00,RBS PURCHASING CARD (DT) - EV CHARGING ELEKTROMOTIVE,,PROPERTY SERVICES,Electric Running Costs,Environmental and Regulatory Services
Swale Borough Council,29UM,23/08/2017,1153272,17.20,RBS PURCHASING CARD (DT) - POUNDLAND,,HUMAN RESOURCES,Stationery,Internal Trading Cost Centres
Swale Borough Council,29UM,23/08/2017,1153272,53.36,RBS PURCHASING CARD (DT) - ALDI,,HUMAN RESOURCES,Stationery,Internal Trading Cost Centres
Swale Borough Council,29UM,23/08/2017,1153272,4.37,RBS PURCHASING CARD (DT) - ALDI,,HUMAN RESOURCES,Stationery,Internal Trading Cost Centres
Swale Borough Council,29UM,23/08/2017,1153273,16.64,RBS PURCHASING CARD (DT) - ARGOS,                         ,REVENUE SERVICES,Equipment Purchase,Central Services to the Public
Swale Borough Council,29UM,23/08/2017,1153273,2.99,RBS PURCHASING CARD (DT) - AMAZON,                         ,REVENUE SERVICES,Stationery,Housing
Swale Borough Council,29UM,23/08/2017,1153273,7.03,RBS PURCHASING CARD (DT) - AMAZON,                         ,REVENUE SERVICES,Stationery,Housing
Swale Borough Council,29UM,23/08/2017,1153273,28.31,RBS PURCHASING CARD (DT) - AMAZON,                         ,REVENUE SERVICES,Equipment Purchase,Housing
Swale Borough Council,29UM,23/08/2017,1153273,21.87,RBS PURCHASING CARD (DT) - CRS,                         ,REVENUE SERVICES,Stationery,Housing
Swale Borough Council,29UM,23/08/2017,1153273,56.62,RBS PURCHASING CARD (DT) - AMAZON,                         ,REVENUE SERVICES,Equipment Purchase,Housing
Swale Borough Council,29UM,23/08/2017,1153273,147.49,RBS PURCHASING CARD (DT) - CPAG,                         ,REVENUE SERVICES,"Books, Journals & e - resources",Housing
Swale Borough Council,29UM,23/08/2017,1153273,7.32,RBS PURCHASING CARD (DT) - AMAZON,                         ,REVENUE SERVICES,Stationery,Housing
Swale Borough Council,29UM,23/08/2017,1153275,76.16,RBS PURCHASING CARD (DT) - BREWERS,,HOUSING SERVICES,Staying Put - Materials,Housing
Swale Borough Council,29UM,23/08/2017,1153275,68.05,RBS PURCHASING CARD (DT) - ASDA,,HOUSING SERVICES,Fuel For Contract Vehicles,Housing
Swale Borough Council,29UM,23/08/2017,1153275,10.80,RBS PURCHASING CARD (DT) - WICKES,,HOUSING SERVICES,Staying Put - Materials,Housing
Swale Borough Council,29UM,23/08/2017,1153276,6.10,RBS PURCHASING CARD (DT) - PAYBYPHONE PARKING,,MKS LEGAL SERVICES,Car Park Fees,Internal Trading Cost Centres
Swale Borough Council,29UM,23/08/2017,1153276,6.10,RBS PURCHASING CARD (DT) - PAYBYPHONE PARKING,,MKS LEGAL SERVICES,Car Park Fees,Internal Trading Cost Centres
Swale Borough Council,29UM,23/08/2017,1153276,6.20,RBS PURCHASING CARD (DT) - PAYBYPHONE PARKING,,MKS LEGAL SERVICES,Car Park Fees,Internal Trading Cost Centres
Swale Borough Council,29UM,23/08/2017,1153276,6.10,RBS PURCHASING CARD (DT) - PAYBYPHONE PARKING,,MKS LEGAL SERVICES,Car Park Fees,Internal Trading Cost Centres
Swale Borough Council,29UM,23/08/2017,1153276,5.08,RBS PURCHASING CARD (DT) - PAYBYPHONE PARKING,,MKS LEGAL SERVICES,Car Park Fees,Internal Trading Cost Centres
Swale Borough Council,29UM,23/08/2017,1153276,12.00,RBS PURCHASING CARD (DT) - PAYBYPHONE PARKING,,MKS LEGAL SERVICES,Car Park Fees,Internal Trading Cost Centres
Swale Borough Council,29UM,23/08/2017,1153276,6.10,RBS PURCHASING CARD (DT) - PAYBYPHONE PARKING,,MKS LEGAL SERVICES,Car Park Fees,Internal Trading Cost Centres
Swale Borough Council,29UM,23/08/2017,1153276,5.08,RBS PURCHASING CARD (DT) - PAYBYPHONE PARKING,,MKS LEGAL SERVICES,Car Park Fees,Internal Trading Cost Centres
Swale Borough Council,29UM,23/08/2017,1153276,5.65,RBS PURCHASING CARD (DT) - PAYBYPHONE PARKING,,MKS LEGAL SERVICES,Car Park Fees,Internal Trading Cost Centres
Swale Borough Council,29UM,23/08/2017,1153276,6.20,RBS PURCHASING CARD (DT) - PAYBYPHONE PARKING,,MKS LEGAL SERVICES,Car Park Fees,Internal Trading Cost Centres
Swale Borough Council,29UM,23/08/2017,1153276,23.40,RBS PURCHASING CARD (DT) - AMAZON,,MKS LEGAL SERVICES,Equipment Purchase,Internal Trading Cost Centres
Swale Borough Council,29UM,23/08/2017,1153276,5.65,RBS PURCHASING CARD (DT) - PAYBYPHONE PARKING,,MKS LEGAL SERVICES,Car Park Fees,Internal Trading Cost Centres
Swale Borough Council,29UM,23/08/2017,1153276,6.10,RBS PURCHASING CARD (DT) - PAYBYPHONE PARKING,,MKS LEGAL SERVICES,Car Park Fees,Internal Trading Cost Centres
Swale Borough Council,29UM,23/08/2017,1153276,5.65,RBS PURCHASING CARD (DT) - PAYBYPHONE PARKING,,MKS LEGAL SERVICES,Car Park Fees,Internal Trading Cost Centres
Swale Borough Council,29UM,23/08/2017,1153276,6.10,RBS PURCHASING CARD (DT) - PAYBYPHONE PARKING,,MKS LEGAL SERVICES,Car Park Fees,Internal Trading Cost Centres
Swale Borough Council,29UM,23/08/2017,1153276,6.20,RBS PURCHASING CARD (DT) - PAYBYPHONE PARKING,,MKS LEGAL SERVICES,Car Park Fees,Internal Trading Cost Centres
Swale Borough Council,29UM,23/08/2017,1153276,5.65,RBS PURCHASING CARD (DT) - PAYBYPHONE PARKING,,MKS LEGAL SERVICES,Car Park Fees,Internal Trading Cost Centres
Swale Borough Council,29UM,23/08/2017,1153276,12.00,RBS PURCHASING CARD (DT) - PAYBYPHONE PARKING,,MKS LEGAL SERVICES,Car Park Fees,Internal Trading Cost Centres
Swale Borough Council,29UM,23/08/2017,1153276,5.08,RBS PURCHASING CARD (DT) - PAYBYPHONE PARKING,,MKS LEGAL SERVICES,Car Park Fees,Internal Trading Cost Centres
Swale Borough Council,29UM,23/08/2017,1153276,17.90,RBS PURCHASING CARD (DT) - PAYBYPHONE PARKING,,MKS LEGAL SERVICES,Car Park Fees,Internal Trading Cost Centres
Swale Borough Council,29UM,23/08/2017,1153276,5.65,RBS PURCHASING CARD (DT) - PAYBYPHONE PARKING,,MKS LEGAL SERVICES,Car Park Fees,Internal Trading Cost Centres
Swale Borough Council,29UM,23/08/2017,1153276,5.65,RBS PURCHASING CARD (DT) - PAYBYPHONE PARKING,,MKS LEGAL SERVICES,Car Park Fees,Internal Trading Cost Centres
Swale Borough Council,29UM,23/08/2017,1153276,5.65,RBS PURCHASING CARD (DT) - PAYBYPHONE PARKING,,MKS LEGAL SERVICES,Car Park Fees,Internal Trading Cost Centres
Swale Borough Council,29UM,23/08/2017,1153276,5.08,RBS PURCHASING CARD (DT) - PAYBYPHONE PARKING,,MKS LEGAL SERVICES,Car Park Fees,Internal Trading Cost Centres
Swale Borough Council,29UM,23/08/2017,1153277,59.60,RBS PURCHASING CARD (DT) - ANIMAL HEALTH CO LTD,,ENVIRONMENTAL RESPONSE TEAM,Equipment Purchase,Environmental and Regulatory Services
Swale Borough Council,29UM,23/08/2017,1153278,9.24,RBS PURCHASING CARD (DT) - WICKES,,PROPERTY SERVICES,Non-Planned Building Maintenance,Housing
Swale Borough Council,29UM,23/08/2017,1153278,13.32,RBS PURCHASING CARD (DT) - WICKES,,PROPERTY SERVICES,Non-Planned Building Maintenance,Housing
Swale Borough Council,29UM,23/08/2017,1153279,11.78,RBS PURCHASING CARD (DT) - HERMES,,MKS LEGAL SERVICES,Courier Service,Internal Trading Cost Centres
Swale Borough Council,29UM,23/08/2017,1153279,119.35,RBS PURCHASING CARD (DT) - CILEX LAW SCHOOL,,HUMAN RESOURCES,Training - Courses,Corporate & Democratic Core
Swale Borough Council,29UM,23/08/2017,1153280,23.32,RBS PURCHASING CARD (DT) - LTR SUPPLIES,,LEISURE & OPEN SPACES,Equipment Purchase,Cultural and Related Services
Swale Borough Council,29UM,23/08/2017,1153280,38.34,RBS PURCHASING CARD (DT) - WILKO,,LEISURE & OPEN SPACES,Equipment Purchase,Cultural and Related Services
Swale Borough Council,29UM,23/08/2017,1153280,18.33,RBS PURCHASING CARD (DT) - WILKO,,LEISURE & OPEN SPACES,Equipment Purchase,Cultural and Related Services
Swale Borough Council,29UM,23/08/2017,1153281,321.00,RBS PURCHASING CARD (DT) - HMCTS,                         ,REVENUE SERVICES,Court Costs,Central Services to the Public
Swale Borough Council,29UM,23/08/2017,1153150,270.80,RSP RAIL TRAVEL ACCOUNT - (DT),                         ,FINANCIAL SERVICES,Travel Warrants (Staff Travel),Internal Trading Cost Centres
Swale Borough Council,29UM,23/08/2017,1153086,7597.30,SEH COMMERCIAL,6400746                  ,COMMUNITY SAFETY,Capital Constuction - CIS Works,Not used in this Structure
Swale Borough Council,29UM,23/08/2017,1152972,765.70,SKYE INSTRUMENTS LTD,1705412                  ,MKS ENVIRONMENTAL SERVICES,Equipment Purchase,Environmental and Regulatory Services
Swale Borough Council,29UM,23/08/2017,1153228,712.79,SOUTH EAST BUILDING CO LTD,1786838                  ,HOUSING SERVICES,Housing Renovation Grants,Not used in this Structure
Swale Borough Council,29UM,23/08/2017,1153266,423797.56,SPIRIT OF SITTINGBOURNE LLP,OC377168                 ,FINANCIAL SERVICES,STC - Capitalised Fees And Charges,Not used in this Structure
Swale Borough Council,29UM,23/08/2017,1153117,1425.00,THE OYSTER PARTNERSHIP,05020374                 ,PLANNING SERVICES,Agency/Contract Staff,Planning and Development Services
Swale Borough Council,29UM,23/08/2017,1152984,1500.00,TIKSPAC UK LTD,09238130                 ,CONTRACT & PROCUREMENT,Waste and Recycling Promotion / Comm's Projects,Environmental and Regulatory Services
Swale Borough Council,29UM,23/08/2017,1153134,560.00,VENN GROUP LIMITED,                         ,MKS LEGAL SERVICES,Agency/Contract Staff,Internal Trading Cost Centres
Swale Borough Council,29UM,23/08/2017,1153135,967.50,VENN GROUP LIMITED,                         ,MKS LEGAL SERVICES,Agency/Contract Staff,Internal Trading Cost Centres
Swale Borough Council,29UM,23/08/2017,1153136,858.00,VENN GROUP LIMITED,                         ,MKS LEGAL SERVICES,Agency/Contract Staff,Internal Trading Cost Centres
Swale Borough Council,29UM,23/08/2017,1152999,1321.25,VIVID RESOURCING LIMITED,06459262                 ,PLANNING SERVICES,Agency/Contract Staff,Internal Trading Cost Centres
Swale Borough Council,29UM,23/08/2017,1153193,750.00,WEALD WOODSCAPES LTD,8028446                  ,LEISURE & OPEN SPACES,Maintenance - Grounds,Cultural and Related Services
Swale Borough Council,29UM,23/08/2017,1152842,250.00,WEED MANAGEMENT LTD,4321175                  ,LEISURE & OPEN SPACES,Grounds Contract Variations,Cultural and Related Services
Swale Borough Council,29UM,23/08/2017,1152941,564.49,WHISTL UK LIMITED,04417047                 ,REVENUE SERVICES,Postage,Central Services to the Public
Swale Borough Council,29UM,23/08/2017,1152941,2.96,WHISTL UK LIMITED,04417047                 ,PLANNING SERVICES,Postage,Planning and Development Services
Swale Borough Council,29UM,23/08/2017,1152941,282.24,WHISTL UK LIMITED,04417047                 ,REVENUE SERVICES,Postage,Housing
Swale Borough Council,29UM,23/08/2017,1152941,1.97,WHISTL UK LIMITED,04417047                 ,LEISURE & OPEN SPACES,Postage,Internal Trading Cost Centres
Swale Borough Council,29UM,23/08/2017,1152941,12.76,WHISTL UK LIMITED,04417047                 ,CAR PARKS,Postage,Internal Trading Cost Centres
Swale Borough Council,29UM,23/08/2017,1152941,1134.81,WHISTL UK LIMITED,04417047                 ,PROPERTY SERVICES,Postage,Holding Codes
Swale Borough Council,29UM,23/08/2017,1152941,91.78,WHISTL UK LIMITED,04417047                 ,DEMOCRATIC & ELECTORAL SERVICES,Postage,Central Services to the Public
Swale Borough Council,29UM,23/08/2017,1153262,3229.05,WORLDPAY (DT),07316500                 ,REVENUE SERVICES,Commission Paid,Central Services to the Public
Swale Borough Council,29UM,23/08/2017,1153262,137.71,WORLDPAY (DT),07316500                 ,REVENUE SERVICES,Commission Paid,Central Services to the Public
Swale Borough Council,29UM,23/08/2017,1153262,43.87,WORLDPAY (DT),07316500                 ,REVENUE SERVICES,Commission Paid,Housing
Swale Borough Council,29UM,23/08/2017,1153262,5.52,WORLDPAY (DT),07316500                 ,EXCHEQUER,Commission Paid,Internal Trading Cost Centres
Swale Borough Council,29UM,23/08/2017,1153262,1073.86,WORLDPAY (DT),07316500                 ,EXCHEQUER,Commission Paid,Internal Trading Cost Centres
Swale Borough Council,29UM,23/08/2017,1153262,7.45,WORLDPAY (DT),07316500                 ,EXCHEQUER,Commission Paid,Internal Trading Cost Centres
Swale Borough Council,29UM,23/08/2017,1153262,9.99,WORLDPAY (DT),07316500                 ,MKS ICT,Fees And Services,Internal Trading Cost Centres
Swale Borough Council,29UM,23/08/2017,1153020,5000.00,WYBONE LTD,952455                   ,CONTRACT & PROCUREMENT,Equipment Purchase,Environmental and Regulatory Services
Swale Borough Council,29UM,23/08/2017,1153026,9999.60,WYBONE LTD,952455                   ,ENVIRONMENTAL RESPONSE TEAM,Equipment Purchase,Planning and Development Services
Swale Borough Council,29UM,30/08/2017,1153371,6778.50,ACORN MAINTENANCE SERVICES,3546898                  ,HOUSING SERVICES,Housing Renovation Grants,Not used in this Structure
Swale Borough Council,29UM,30/08/2017,1153014,53.94,ALLSTAR BUSINESS SOLUTIONS LTD - (DT),1073098                  ,SERVICE DELIVERY,Petrol/Derv & Oil,Cultural and Related Services
Swale Borough Council,29UM,30/08/2017,1153014,197.92,ALLSTAR BUSINESS SOLUTIONS LTD - (DT),1073098                  ,ENVIRONMENTAL RESPONSE TEAM,Fuel For Contract Vehicles,Internal Trading Cost Centres
Swale Borough Council,29UM,30/08/2017,1153014,51.81,ALLSTAR BUSINESS SOLUTIONS LTD - (DT),1073098                  ,ENVIRONMENTAL RESPONSE TEAM,Fuel For Contract Vehicles,Environmental and Regulatory Services
Swale Borough Council,29UM,30/08/2017,1153299,45.44,ALLSTAR BUSINESS SOLUTIONS LTD - (DT),1073098                  ,DEMOCRATIC & ELECTORAL SERVICES,Petrol/Derv & Oil,Corporate & Democratic Core
Swale Borough Council,29UM,30/08/2017,1153299,26.81,ALLSTAR BUSINESS SOLUTIONS LTD - (DT),1073098                  ,SERVICE DELIVERY,Petrol/Derv & Oil,Cultural and Related Services
Swale Borough Council,29UM,30/08/2017,1153299,134.01,ALLSTAR BUSINESS SOLUTIONS LTD - (DT),1073098                  ,ENVIRONMENTAL RESPONSE TEAM,Fuel For Contract Vehicles,Internal Trading Cost Centres
Swale Borough Council,29UM,30/08/2017,1153299,0.15,ALLSTAR BUSINESS SOLUTIONS LTD - (DT),1073098                  ,LEISURE & OPEN SPACES,Fuel For Contract Vehicles,Cultural and Related Services
Swale Borough Council,29UM,30/08/2017,1153299,0.15,ALLSTAR BUSINESS SOLUTIONS LTD - (DT),1073098                  ,ENVIRONMENTAL RESPONSE TEAM,Fuel For Contract Vehicles,Environmental and Regulatory Services
Swale Borough Council,29UM,30/08/2017,1153299,68.60,ALLSTAR BUSINESS SOLUTIONS LTD - (DT),1073098                  ,HOUSING SERVICES,Fuel For Contract Vehicles,Housing
Swale Borough Council,29UM,30/08/2017,1153225,357.00,APSE,                         ,CHIEF EXECUTIVE,Prizes/Awards,Corporate & Democratic Core
Swale Borough Council,29UM,30/08/2017,1153286,1900.00,ARC CREATIVE DESIGN LTD,6203311                  ,LEISURE & OPEN SPACES,Maintenance - Grounds,Cultural and Related Services
Swale Borough Council,29UM,30/08/2017,1153096,17000.00,ARLINGCLOSE LTD,2853836                  ,FINANCIAL SERVICES,Consultancy/Specialist Advice,Corporate & Democratic Core
Swale Borough Council,29UM,30/08/2017,1153372,10948.51,ASCENDIT LIFTS LTD,3493530                  ,HOUSING SERVICES,Housing Renovation Grants,Not used in this Structure
Swale Borough Council,29UM,30/08/2017,1153067,602.96,BLENWOOD LTD,4383277                  ,CAR PARKS,Tree Maintenance,Highway and Transport Services
Swale Borough Council,29UM,30/08/2017,1153283,2628.25,BLENWOOD LTD,4383277                  ,LEISURE & OPEN SPACES,Grounds Contract Variations,Cultural and Related Services
Swale Borough Council,29UM,30/08/2017,1153285,3396.83,BLENWOOD LTD,4383277                  ,LEISURE & OPEN SPACES,Maintenance - Grounds,Environmental and Regulatory Services
Swale Borough Council,29UM,30/08/2017,1153129,260.11,BORDEN LANE VETERINARY SURGERY,05097345                 ,ENVIRONMENTAL RESPONSE TEAM,Fees - Treatment Of Dogs,Environmental and Regulatory Services
Swale Borough Council,29UM,30/08/2017,1153355,279.50,BRITISH GAS TRADING LTD,                         ,LEISURE & OPEN SPACES,Gas,Environmental and Regulatory Services
Swale Borough Council,29UM,30/08/2017,1153341,666.66,CLARKES SPORTS STUDIO,                         ,LEISURE & OPEN SPACES,Grants & Subscriptions,Cultural and Related Services
Swale Borough Council,29UM,30/08/2017,1153369,6286.57,COLDWELL CONSTRUCTION LTD,4814340                  ,HOUSING SERVICES,Housing Renovation Grants,Not used in this Structure
Swale Borough Council,29UM,30/08/2017,1153370,8313.45,COLDWELL CONSTRUCTION LTD,4814340                  ,HOUSING SERVICES,Housing Renovation Grants,Not used in this Structure
Swale Borough Council,29UM,30/08/2017,1153241,9409.49,COMENSURA LTD,04085767                 ,HUMAN RESOURCES,Agency/Contract Staff,Internal Trading Cost Centres
Swale Borough Council,29UM,30/08/2017,1153346,500.00,CONNECT CONSULTANTS LTD,6001923                  ,TOURISM & SPORTS DEVELOPMENT,Fees And Services,Trading Undertaking
Swale Borough Council,29UM,30/08/2017,1153300,4860.83,CORE ASSETS CHILDREN'S SERVICES LTD,                         ,COMMUNITY SAFETY,Fees And Services,Planning and Development Services
Swale Borough Council,29UM,30/08/2017,1153368,5466.14,DAYTRAD LIMITED,7654373                  ,HOUSING SERVICES,Housing Renovation Grants,Not used in this Structure
Swale Borough Council,29UM,30/08/2017,1153224,2845.76,ELECTORAL REFORM SERVICES,2263092                  ,DEMOCRATIC & ELECTORAL SERVICES,Fees And Services,Central Services to the Public
Swale Borough Council,29UM,30/08/2017,1153028,3356.00,FAVERSHAM SWIMMING POOL MNGMT COMM LTD,                         ,DIRECTOR OF REGENERATION,Insurance Settlement - Buildings,Cultural and Related Services
Swale Borough Council,29UM,30/08/2017,1153175,295.00,FIRE & SECURITY CONSULTANCY LTD,5946022                  ,PROPERTY SERVICES,Service Contracts,Corporate & Democratic Core
Swale Borough Council,29UM,30/08/2017,1153316,586.04,FURLEY PAGE LLP,OC317755                 ,LEISURE & OPEN SPACES,Legal Fees,Cultural and Related Services
Swale Borough Council,29UM,30/08/2017,1153316,117.21,FURLEY PAGE LLP,OC317755                 ,LEISURE & OPEN SPACES,Legal Fees,Cultural and Related Services
Swale Borough Council,29UM,30/08/2017,1153282,51.98,GALTEC SOLUTIONS LTD,5209602                  ,MKS ICT,Computer Equipment & Materials,Internal Trading Cost Centres
Swale Borough Council,29UM,30/08/2017,1153282,467.75,GALTEC SOLUTIONS LTD,5209602                  ,MKS ICT,Computer Equipment & Materials,Internal Trading Cost Centres
Swale Borough Council,29UM,30/08/2017,1153209,1750.00,HISTORICAL RESEARCH GRP OF S'BOURNE,                         ,TOURISM & SPORTS DEVELOPMENT,Grants & Subscriptions,Cultural and Related Services
Swale Borough Council,29UM,30/08/2017,1152994,4225.60,INSIGHT DIRECT (UK) LTD,2579852                  ,MKS ICT,Payments in Year,Ledger/Suspense Codes
Swale Borough Council,29UM,30/08/2017,1153317,579.60,REDACTED PERSONAL INFORMATION,                         ,LEISURE & OPEN SPACES,Maintenance - Grounds,Cultural and Related Services
Swale Borough Council,29UM,30/08/2017,1150776,3880.00,K JONES ELECTRICAL,3668823362               ,COMMUNITY SAFETY,Capital Constuction - CIS Works,Not used in this Structure
Swale Borough Council,29UM,30/08/2017,1153335,1550.00,KAREBEAR KENNELS LTD,                         ,ENVIRONMENTAL RESPONSE TEAM,Kennelling Of Dogs,Environmental and Regulatory Services
Swale Borough Council,29UM,30/08/2017,1153335,546.00,KAREBEAR KENNELS LTD,                         ,ENVIRONMENTAL RESPONSE TEAM,Kennelling Of Dogs,Environmental and Regulatory Services
Swale Borough Council,29UM,30/08/2017,1153335,-175.00,KAREBEAR KENNELS LTD,                         ,ENVIRONMENTAL RESPONSE TEAM,Income collected by Dog Kennels,Environmental and Regulatory Services
Swale Borough Council,29UM,30/08/2017,1153304,420.00,KENT MESSENGER LTD,505554                   ,DEMOCRATIC & ELECTORAL SERVICES,Advertising & Promo - Ext Fund by Grant & Other Income,Corporate & Democratic Core
Swale Borough Council,29UM,30/08/2017,1153078,300.00,LEMAR LIMITED,04350292                 ,SERVICE DELIVERY,Capital Constuction - CIS Works,Not used in this Structure
Swale Borough Council,29UM,30/08/2017,1153078,95.00,LEMAR LIMITED,04350292                 ,SERVICE DELIVERY,Capital Constuction - CIS Works,Not used in this Structure
Swale Borough Council,29UM,30/08/2017,1153336,280.00,LILAC ESTATES,                         ,HOUSING SERVICES,B & B - Landlords Payments,Housing
Swale Borough Council,29UM,30/08/2017,1153337,280.00,LILAC ESTATES,                         ,HOUSING SERVICES,B & B - Landlords Payments,Housing
Swale Borough Council,29UM,30/08/2017,1153338,280.00,LILAC ESTATES,                         ,HOUSING SERVICES,B & B - Landlords Payments,Housing
Swale Borough Council,29UM,30/08/2017,1153339,280.00,LILAC ESTATES,                         ,HOUSING SERVICES,B & B - Landlords Payments,Housing
Swale Borough Council,29UM,30/08/2017,1153207,252.00,M.T.S. CLEANSING SERVICES LTD,2045340                  ,LEISURE & OPEN SPACES,Clearing Cesspools,Cultural and Related Services
Swale Borough Council,29UM,30/08/2017,1152738,3268.00,MEDWAY ACCOMMODATION LIMITED,                         ,HOUSING SERVICES,B & B - Landlords Payments,Housing
Swale Borough Council,29UM,30/08/2017,1152738,680.83,MEDWAY ACCOMMODATION LIMITED,                         ,HOUSING SERVICES,B & B - Landlords Payments,Housing
Swale Borough Council,29UM,30/08/2017,1153036,629.33,MEDWAY ACCOMMODATION LIMITED,                         ,HOUSING SERVICES,B & B - Landlords Payments,Housing
Swale Borough Council,29UM,30/08/2017,1153036,3020.80,MEDWAY ACCOMMODATION LIMITED,                         ,HOUSING SERVICES,B & B - Landlords Payments,Housing
Swale Borough Council,29UM,30/08/2017,1153064,2531.20,MEDWAY ACCOMMODATION LIMITED,                         ,HOUSING SERVICES,B & B - Landlords Payments,Housing
Swale Borough Council,29UM,30/08/2017,1153064,527.33,MEDWAY ACCOMMODATION LIMITED,                         ,HOUSING SERVICES,B & B - Landlords Payments,Housing
Swale Borough Council,29UM,30/08/2017,1153183,2876.00,MEDWAY ACCOMMODATION LIMITED,                         ,HOUSING SERVICES,B & B - Landlords Payments,Housing
Swale Borough Council,29UM,30/08/2017,1153183,599.17,MEDWAY ACCOMMODATION LIMITED,                         ,HOUSING SERVICES,B & B - Landlords Payments,Housing
Swale Borough Council,29UM,30/08/2017,1153194,1038.00,NW PROPERTIES,                         ,HOUSING SERVICES,RDS - Landlord claim on Bond Scheme,Housing
Swale Borough Council,29UM,30/08/2017,1152744,32108.00,PARAMOUNT INDEPENDENT PROPERTY SERVICES,                         ,HOUSING SERVICES,B & B - Landlords Payments,Housing
Swale Borough Council,29UM,30/08/2017,1153195,1000.00,QUEENBOROUGH FISHERY TRUST,                         ,PROPERTY SERVICES,Rent,Corporate & Democratic Core
Swale Borough Council,29UM,30/08/2017,1153156,490.00,REARDON PROPERTIES,                         ,HOUSING SERVICES,B & B - Landlords Payments,Housing
Swale Borough Council,29UM,30/08/2017,1153157,490.00,REARDON PROPERTIES,                         ,HOUSING SERVICES,B & B - Landlords Payments,Housing
Swale Borough Council,29UM,30/08/2017,1153158,875.00,REARDON PROPERTIES,                         ,HOUSING SERVICES,B & B - Landlords Payments,Housing
Swale Borough Council,29UM,30/08/2017,1153163,490.00,REARDON PROPERTIES,                         ,HOUSING SERVICES,B & B - Landlords Payments,Housing
Swale Borough Council,29UM,30/08/2017,1153164,630.00,REARDON PROPERTIES,                         ,HOUSING SERVICES,B & B - Landlords Payments,Housing
Swale Borough Council,29UM,30/08/2017,1153165,795.00,REARDON PROPERTIES,                         ,HOUSING SERVICES,B & B - Landlords Payments,Housing
Swale Borough Council,29UM,30/08/2017,1153323,735.00,REARDON PROPERTIES,                         ,HOUSING SERVICES,B & B - Landlords Payments,Housing
Swale Borough Council,29UM,30/08/2017,1153324,490.00,REARDON PROPERTIES,                         ,HOUSING SERVICES,B & B - Landlords Payments,Housing
Swale Borough Council,29UM,30/08/2017,1153325,875.00,REARDON PROPERTIES,                         ,HOUSING SERVICES,B & B - Landlords Payments,Housing
Swale Borough Council,29UM,30/08/2017,1153326,280.00,REARDON PROPERTIES,                         ,HOUSING SERVICES,B & B - Landlords Payments,Housing
Swale Borough Council,29UM,30/08/2017,1153212,1600.00,ROADMARKING EXCEL LTD,08121734                 ,CAR PARKS,Road Signs,Highway and Transport Services
Swale Borough Council,29UM,30/08/2017,1153153,1000.00,SHEERNESS TOWN TEAM,                         ,TOURISM & SPORTS DEVELOPMENT,Grants & Subscriptions,Cultural and Related Services
Swale Borough Council,29UM,30/08/2017,1153356,1000.00,SITT. & KEMSLEY LIGHT RAILWAY LTD,                         ,TOURISM & SPORTS DEVELOPMENT,Grants & Subscriptions,Cultural and Related Services
Swale Borough Council,29UM,30/08/2017,1152882,3272.29,SOUTHERN COMMUNICATIONS LTD,1328040                  ,MKS ICT,Telephone,Corporate & Democratic Core
Swale Borough Council,29UM,30/08/2017,1153242,1050.00,SWALE COMMUNITY PROJECT,                         ,ENVIRONMENTAL RESPONSE TEAM,Fees And Services,Internal Trading Cost Centres
Swale Borough Council,29UM,30/08/2017,1153185,1645.00,TRAFALGAR TAVERN LTD,07999329                 ,HOUSING SERVICES,B & B - Landlords Payments,Housing
Swale Borough Council,29UM,30/08/2017,1153186,1365.00,TRAFALGAR TAVERN LTD,07999329                 ,HOUSING SERVICES,B & B - Landlords Payments,Housing
Swale Borough Council,29UM,30/08/2017,1153243,501.27,VANITORIALS LIMITED,3952938                  ,PROPERTY SERVICES,Cleaning Materials,Internal Trading Cost Centres
Swale Borough Council,29UM,30/08/2017,1153301,967.50,VENN GROUP LIMITED,                         ,MKS LEGAL SERVICES,Agency/Contract Staff,Internal Trading Cost Centres
Swale Borough Council,29UM,30/08/2017,1153302,741.00,VENN GROUP LIMITED,                         ,MKS LEGAL SERVICES,Agency/Contract Staff,Internal Trading Cost Centres
Swale Borough Council,29UM,30/08/2017,1153303,520.00,VENN GROUP LIMITED,                         ,MKS LEGAL SERVICES,Agency/Contract Staff,Internal Trading Cost Centres
Swale Borough Council,29UM,30/08/2017,1153131,1345.74,WHISTL UK LIMITED,04417047                 ,REVENUE SERVICES,Postage,Central Services to the Public
Swale Borough Council,29UM,30/08/2017,1153131,3.26,WHISTL UK LIMITED,04417047                 ,PLANNING SERVICES,Postage,Planning and Development Services
Swale Borough Council,29UM,30/08/2017,1153131,672.86,WHISTL UK LIMITED,04417047                 ,REVENUE SERVICES,Postage,Housing
Swale Borough Council,29UM,30/08/2017,1153131,2.78,WHISTL UK LIMITED,04417047                 ,LEISURE & OPEN SPACES,Postage,Internal Trading Cost Centres
Swale Borough Council,29UM,30/08/2017,1153131,21.04,WHISTL UK LIMITED,04417047                 ,CAR PARKS,Postage,Internal Trading Cost Centres
Swale Borough Council,29UM,30/08/2017,1153131,49.29,WHISTL UK LIMITED,04417047                 ,PROPERTY SERVICES,Postage,Holding Codes
Swale Borough Council,29UM,30/08/2017,1153131,84.15,WHISTL UK LIMITED,04417047                 ,DEMOCRATIC & ELECTORAL SERVICES,Postage,Central Services to the Public
Swale Borough Council,29UM,30/08/2017,1153305,3132.80,WICKSTEED LEISURE LTD,603152                   ,LEISURE & OPEN SPACES,Construction,Not used in this Structure
